Cogmind - Beta 17 @@@ ROGUE MODE // 2026.08.19 @ 10:49:48 Player: aperiodic Result: Destroyed by H-88 Terminator with KE Penetrator Performance ------------- Evolutions (9) 4500 Regions Visited (29) 5800 Robots Destroyed (637) 3185 Value Destroyed (37000) 37000 Prototype IDs (239) 4780 Alien Tech Used (10) 2000 Bonus (50993) 50993 TOTAL SCORE: 108258 Bonus ------- Triggered High Security 500 High Alert Combat Kills 22969 Follower Combat Kills 3944 Hunted by Unchained 500 Destroyed Unchained 1000 Network Hubs Disabled 400 Registered with UFD 300 Met Optimus in HQ 500 Met Data Miner 300 Met Zhirov 300 Built Enhanced Grunts 300 Met R17 at Cetus 500 Found Hidden Lab 3000 Used Core Reset Matrix 3000 Scanned by Researcher 500 Destroyed Superfortress 15000 Met Optimus at Protoforge 1000 Friendly Fire -3020 Cogmind --------- Core Integrity 0/1600 Matter 129/300 Energy 217/220 System Corruption 11% Temperature Cool (3) Movement Hovering (52) Location -1/Access Parts ------- > --- POWER (2) -------- Concept Zero-point Core > --- PROPULSION (7) --- Concept Gyrokinetic System Concept Gyrokinetic System Concept Gyrokinetic System (fused) > --- UTILITY (12) ----- Concept Antigrav Storage Unit Spectral Analyzer Experimental Active Sensor Suite Concept Projectile Intercept Suite Concept Core Analysis Suite Experimental Armor Integrity Analyzer > --- WEAPON (4) ------- (None) > --- INVENTORY (25) --- Concept Phasing Heat Sink Concept Thermoelectric Network Concept NT7 Matterbank (750) Concept Weapon Articulator Concept Weapon Articulator Concept Core Analysis Suite Experimental Kinecellerator Experimental Kinecellerator Concept Cloak Mesh Concept Core Shell Concept Energy Mantle Concept Matter Streamer Concept Plasma Driver Peak State ------------ > --- POWER ------------ Hybrid Graviton Reactor Concept Zero-point Core > --- PROPULSION ------- Gravjet Array Concept Combat Aerolev Unit Concept Gyrokinetic System Concept Gyrokinetic System Concept Gyrokinetic System Concept Gyrokinetic System > --- UTILITY ---------- Concept Antigrav Storage Unit Spectral Analyzer Experimental Active Sensor Suite Concept Projectile Intercept Suite Concept Core Analysis Suite Experimental Armor Integrity Analyzer Experimental Reaction Control System Concept Beam Splitter Quantum Router A0-MCA's Component Scanner Concept Matter Streamer > --- WEAPON ----------- Concept XC Strikerail Concept XC Strikerail Concept Arcsight Missile Launcher Concept Deflector Sword > --- INVENTORY -------- Concept Zero-point Core Concept Phasing Heat Sink Concept Thermoelectric Network Concept NT7 Matterbank Concept Weapon Articulator Concept Weapon Articulator Concept Core Analysis Suite Experimental Kinecellerator Experimental Kinecellerator Experimental Reaction Control System Concept Cloak Mesh Concept Core Shell Graphene Brace Graphene Brace AEGIS Remote Shield Concept Energy Mantle Concept Plasma Driver Concept Heavy Railcannon Concept Heavy Railcannon Concept Rapid Grenade Launcher Concept Arcsight Missile Launcher Concept Smart ZDS [Rating: 311] Favorites ----------- Power Micro Antimatter Reactor Engine Subdweller Power Source Power Core Concept Zero-point Core Reactor Micro Antimatter Reactor Propulsion Field Propulsion Array Treads Light Treads Leg Armored Leg Wheel Compact Wheel Hover Unit Concept Gyrokinetic System Flight Unit Field Propulsion Array Utility Graphene Brace Device Graphene Brace Storage Large Storage Unit Processor A0-MCA's Component Scanner Hackware Improved Hacking Suite Protection Medium Regenerative Plating Weapon Particle Cannon Energy Gun Subdweller Laser Energy Cannon Particle Cannon Ballistic Gun Advanced KE Penetrator Ballistic Cannon Concept Heavy Railcannon Launcher Advanced Micro-nuke Launcher Special Weapon CPS Tube Impact Weapon Shock Maul Slashing Weapon Power Sword Piercing Weapon Lance Build | -11 -10 -10 -10 -9 -9 -6 -6 -6 -6 -6 -6 -5 -5 -5 -5 -5 -4 -4 -4 -4 -4 -4 -3 -3 -3 -2 -2 -2 -1 ------- Run | Yrd Mat Min Sub Rec Scr Fac Was Fac Low Low Dat Pro Fac Upp Upp Zhi Pro Fac Ext Cet Arc Hub Res Arm Lab Res Qua Frg Acc Slots Evolved 18 | . . . . . . 8 . . . . . . 2 . . . . 2 . . . . 2 . . 2 . . 2 Power 1 | . . . . . . . . . . . . . . . . . . . . . . . . . . 1 . . . Propulsion 5 | . . . . . . 1 . . . . . . . . . . . 2 . . . . 1 . . . . . 1 Utility 10 | . . . . . . 6 . . . . . . 2 . . . . . . . . . 1 . . 1 . . . Weapon 2 | . . . . . . 1 . . . . . . . . . . . . . . . . . . . . . . 1 Parts Attached 338 | 8 11 5 12 1 12 21 . 5 . . . 5 17 4 5 3 1 25 14 10 3 6 15 11 3 12 6 107 16 Power 35 | 1 1 1 3 . 1 . . . . . . . 2 . 1 1 . 2 4 1 . . . 2 . 2 2 10 1 Engine 7 | 1 1 1 3 . 1 . . . . . . . . . . . . . . . . . . . . . . . . Core 12 | . . . . . . . . . . . . . 2 . 1 . . 1 3 . . . . . . 1 . 4 . Reactor 16 | . . . . . . . . . . . . . . . . 1 . 1 1 1 . . . 2 . 1 2 6 1 Propulsion 84 | 2 4 2 3 . 2 3 . 2 . . . . . . . . . 11 2 . . 4 3 3 . 4 . 38 1 Treads 2 | . 2 . . . . . . . . . . . . . . . . . . . . . . . . . . . . Leg 15 | . . . . . . 3 . 2 . . . . . . . . . 6 . . . . . . . . . 4 . Wheel 9 | 2 2 2 3 . . . . . . . . . . . . . . . . . . . . . . . . . . Hover 11 | . . . . . . . . . . . . . . . . . . . . . . . . . . 1 . 9 1 Flight 47 | . . . . . 2 . . . . . . . . . . . . 5 2 . . 4 3 3 . 3 . 25 . Utility 146 | 2 2 1 3 . 4 14 . 2 . . . 5 11 3 4 2 1 10 4 7 3 2 8 3 2 4 3 41 5 Device 67 | 1 . 1 . . 3 4 . . . . . 3 4 1 3 . . 6 1 3 . 1 3 3 1 2 2 21 4 Storage 10 | 1 2 . 1 . . . . . . . . . . . . 1 . . . . 1 . 1 . . 1 . 2 . Processor 21 | . . . . . . 3 . 1 . . . . 1 . . . . 2 . . . 1 2 . . . . 10 1 Hackware 12 | . . . . . . 2 . . . . . . 1 . . . 1 2 . . 2 . 2 . 1 . 1 . . Protection 36 | . . . 2 . 1 5 . 1 . . . 2 5 2 1 1 . . 3 4 . . . . . 1 . 8 . Artifact . | . . . . . . . . . . . . . . . . . . . . . . . . . . . . . . Weapon 73 | 3 4 1 3 1 5 4 . 1 . . . . 4 1 . . . 2 4 2 . . 4 3 1 2 1 18 9 Energy Gun 8 | 3 . . 1 . . . . . . . . . . . . . . . . 1 . . . . . . . 1 2 Energy Cannon 11 | . 2 . . 1 . 1 . 1 . . . . . . . . . . . . . . 1 2 . 1 . 1 1 Ballistic Gun 16 | . 2 . 1 . 3 2 . . . . . . . . . . . . . 1 . . . . . . . 6 1 Ballistic Cannon 5 | . . . . . . . . . . . . . . . . . . 1 . . . . . 1 . . . 2 1 Launcher 8 | . . . 1 . . . . . . . . . 2 . . . . 1 . . . . . . . . . 1 3 Special Weapon 4 | . . 1 . . 1 . . . . . . . . . . . . . 1 . . . . . 1 . . . . Impact Weapon . | . . . . . . . . . . . . . . . . . . . . . . . . . . . . . . Slashing Weapon 12 | . . . . . 1 1 . . . . . . 2 . . . . . 3 . . . 1 . . . 1 3 . Piercing Weapon 9 | . . . . . . . . . . . . . . 1 . . . . . . . . 2 . . 1 . 4 1 Special Melee Weapon . | . . . . . . . . . . . . . . . . . . . . . . . . . . . . . . Unidentified Prototypes 11 | . . . . . 1 1 . . . . . 1 1 . . 3 . 2 . . . . . . 1 . 1 . . Parts Lost 103 | . 1 . 4 . . 6 . 1 . . . . 6 . 2 . . 13 5 . . 4 1 13 . . . 27 20 Power 11 | . 1 . 2 . . . . . . . . . 1 . . . . 1 . . . . . 1 . . . 3 2 Propulsion 28 | . . . 2 . . . . . . . . . . . . . . 4 1 . . 3 . 3 . . . 11 4 Utility 45 | . . . . . . 5 . . . . . . 4 . 2 . . 7 3 . . 1 1 7 . . . 11 4 Weapon 19 | . . . . . . 1 . 1 . . . . 1 . . . . 1 1 . . . . 2 . . . 2 10 Highest Loss Streak 14 | . 1 . 2 . . 3 . 1 . . . . 3 . 2 . . 2 3 . . 2 1 10 . . . 14 11 To Critical Strikes 3 | . . . 2 . . . . 1 . . . . . . . . . . . . . . . . . . . . . Average Backups 6 | 4 8 14 7 20 1 8 11 10 11 11 11 10 10 9 10 11 13 11 3 3 5 4 10 13 9 13 13 7 19 Power . | . . . . . . . . . . . . . . . . . . . . . . . . . . . . . . Propulsion . | 2 4 6 1 2 . 3 1 . . . . . . . . 1 3 3 1 . 1 . 1 1 . . 1 . . Utility 3 | . . 4 3 10 . 4 6 6 7 7 7 7 7 5 6 6 5 3 . 1 3 3 6 10 5 6 6 5 12 Weapon 1 | 1 2 3 2 6 . . 1 2 2 2 2 1 1 2 3 2 2 1 . . . . 1 1 . 1 1 1 6 Tool/Special . | . . . . . . . . . . . . . . . . . . . . . . . . . . . . . . Unused Backups 87 | . . . 5 . 16 8 2 1 . . . 2 3 1 . 2 . 1 . 6 . 4 3 1 . 2 2 23 5 Power 5 | . . . . . 1 1 . . . . . . . . . . . . . 1 . . . . . . . 2 . Propulsion 14 | . . . 1 . 2 2 1 1 . . . . . 1 . . . 1 . 1 . . 1 . . . . 3 . Utility 49 | . . . 3 . 8 3 1 . . . . 1 2 . . 2 . . . 3 . 3 2 1 . 2 1 12 5 Weapon 17 | . . . 1 . 4 2 . . . . . . 1 . . . . . . 1 . 1 . . . . 1 6 . Tool/Special 2 | . . . . . 1 . . . . . . 1 . . . . . . . . . . . . . . . . . Average Slot Usage (%) 88 | . 99 100 85 85 91 92 77 76 77 77 77 79 82 87 88 89 89 86 74 78 88 89 88 86 62 75 76 89 86 Engine 3 | . 13 14 13 14 2 . . . . . . . . . . . . . . . . . . . . . . . . Core 2 | . . . . . 5 . . . . . . . 2 5 5 2 . 2 2 4 . . . . . . . 3 4 Reactor 3 | . . . . . 5 5 5 5 5 5 5 5 2 . . 2 5 1 . . 5 5 4 3 . 2 5 3 3 Treads 1 | . 15 . 1 . 1 . . . . . . . . . . . . . . . . . . . . . . . . Leg 6 | . . . . . 11 19 11 14 22 22 22 22 17 15 15 15 15 15 . . . . . . . . . . . Wheel 4 | . 12 27 25 28 2 . . . . . . . . . . . . . . . . . . . . . . . . Hover 1 | . . . . . . . . . . . . . . . . . . . . . . . . . . . . 3 23 Flight 8 | . . . . . 9 . . . . . . . . . . . . 3 20 15 15 18 18 18 9 11 13 15 . Device 17 | . 14 14 1 . 22 9 16 16 16 16 16 17 16 14 21 26 25 18 9 6 14 13 14 19 18 21 20 18 20 Storage 3 | . 14 14 5 14 1 5 5 5 5 5 5 5 5 5 5 7 10 4 5 5 4 1 2 4 4 4 4 1 4 Processor 7 | . . . . . . 8 11 11 11 11 11 11 12 15 8 5 5 8 15 15 15 15 18 18 14 13 13 19 16 Hackware 2 | . . . . . . 9 . . . . . . 1 5 5 5 5 14 8 5 5 7 12 6 1 4 7 4 2 Protection 4 | . . . 8 . 1 14 11 6 5 5 5 5 10 8 10 7 5 1 2 11 9 10 2 . 3 7 2 4 . Energy Gun 3 | . 1 . 11 . 5 . . . . . . . . . . . . . . . . . . . . . . . . Energy Cannon 5 | . 8 27 14 28 4 5 . 2 5 5 5 5 2 . . . . . . . . . . 3 3 3 . . 1 Ballistic Gun 2 | . 18 . 1 . 2 1 5 2 . . . 1 4 . . . . . . 1 5 5 3 . . . . 2 3 Launcher 1 | . . . . . 3 5 5 4 . . . . . . . . . . . . . . . . . . . . 1 Special Weapon 1 | . . . . . 3 . . . . . . . . . . . . . . . . . . . . . . . . Slashing Weapon 3 | . . . . . 1 2 5 5 5 5 5 5 6 10 10 10 10 7 5 10 10 10 8 . . . 3 1 3 Peak Build Rating 311 | 7 10 11 20 21 61 94 96 107 103 103 103 110 122 115 115 117 119 132 113 140 137 137 154 164 139 172 198 292 311 Average Rating 89 | 5 8 10 13 20 40 82 95 102 103 103 103 104 111 114 113 113 117 116 107 118 136 128 142 155 118 158 182 223 295 On Entrance 101 | . 7 10 11 20 21 55 93 96 103 103 103 103 110 111 115 112 117 119 105 105 137 136 125 154 96 139 165 196 289 Avg Prop Armor Cover (%) 9 | . . . 3 4 12 . . . 3 3 3 2 2 . . . . . . . 8 . . 7 . . . 10 . Naked Turns 871 | . . . . . 871 . . . . . . . . . . . . . . . . . . . . . . . . Heaviest Build 217 | 12 54 54 213 217 217 75 74 74 65 65 65 66 81 74 83 76 68 66 34 49 42 40 60 62 50 68 67 92 130 Greatest Support 115 | 26 40 40 40 16 76 66 66 102 102 82 82 82 82 82 82 82 82 115 37 53 53 53 64 66 52 69 68 112 110 Greatest Overweight (x) 13 | . 2 2 13 13 13 1 1 1 . . . . 1 . 1 . . 1 . 1 13 1 . 3 1 . . 1 1 Average Overweight (x) 1 | . . 1 3 13 3 . 1 . . . . . . . . . . . . . 11 . . . . . . . . Largest Inventory Capacity 35 | 8 20 20 35 35 35 15 15 15 15 15 15 15 15 15 15 15 15 15 5 5 5 5 15 15 15 15 15 25 25 Average Capacity 10 | 7 11 20 16 35 7 15 15 15 15 15 15 15 15 15 15 15 15 13 5 5 5 5 11 15 15 15 15 8 25 Most Carried 35 | 7 12 20 33 35 35 14 15 15 15 15 15 15 15 15 15 15 15 15 5 5 5 5 15 15 14 15 15 25 25 Average Carried 7 | 4 8 17 11 34 2 11 14 14 15 15 15 14 14 14 15 14 14 12 4 4 4 4 10 14 8 14 14 7 20 Final Capacity 35 | 8 20 20 35 35 15 15 15 15 15 15 15 15 15 15 15 15 15 5 5 5 5 5 15 15 15 15 15 25 25 Final Carried 35 | 7 12 19 33 35 15 12 15 15 15 15 15 15 14 15 15 15 15 5 5 5 5 4 15 13 14 15 13 25 13 Transmogrified Parts 269 | . . . . . 269 . . . . . . . . . . . . . . . . . . . . . . . . Integrity Recovered 63 | . . . . . 63 . . . . . . . . . . . . . . . . . . . . . . . . Class Distribution -------------------- 53% | Mutant 12% | Commander-Mutant 7% | Scavenger-Sprinter 5% | Hauler-Mutant 3% | Gladiator Dominant Class ---------------- Mutant | -10/Materials Mutant | -10/Mines Mutant | -10/Subcaves Hauler-Mutant | -9/Recycling Mutant | -9/Scraptown Hacker-Mutant | -6/Factory Mutant | -6/Waste Mutant | -6/Factory Mutant | -6/Lower Caves Mutant | -6/Lower Caves Mutant | -6/Data Miner Mutant | -5/Proximity Caves Mutant | -5/Factory Gladiator | -5/Upper Caves Gladiator | -5/Upper Caves Gladiator | -5/Zhirov Gladiator | -4/Proximity Caves Hacker-Gladiator | -4/Factory Commander-Sprinter | -4/Extension Commander-Sprinter | -4/Cetus Commander-Mutant | -4/Archives Scavenger-Scout | -4/Hub_04(d) Hacker-Scout | -3/Research Hacker-Scout | -3/Armory Hacker-Mutant | -3/Lab Hacker-Mutant | -2/Research Hacker-Gladiator | -2/Quarantine Scavenger-Sprinter | -2/Protoforge Hacker-Scout | -1/Access Resources | -11 -10 -10 -10 -9 -9 -6 -6 -6 -6 -6 -6 -5 -5 -5 -5 -5 -4 -4 -4 -4 -4 -4 -3 -3 -3 -2 -2 -2 -1 ----------- Run | Yrd Mat Min Sub Rec Scr Fac Was Fac Low Low Dat Pro Fac Upp Upp Zhi Pro Fac Ext Cet Arc Hub Res Arm Lab Res Qua Frg Acc Matter Collected 26800 | 270 395 174 308 . 220 395 180 50 10 . . 60 192 127 86 60 21 331 527 150 40 81 194 120 . 298 140 5744 16627 Remotely 10845 | . . . . . . . . . . . . . . . . . . . . . . . . . . . . 190 10655 Salvage Created 28038 | 139 330 137 722 . . 1620 . 751 17 44 . 520 1264 78 705 179 230 1353 293 182 307 403 1299 1119 . 206 590 5874 9676 Parts 1225 | 9 26 8 47 . . 73 . 33 . 3 . 16 68 1 20 2 9 72 13 16 30 24 30 61 . 11 42 280 331 Haulers Intercepted 20 | . 1 . . . . 2 . 2 . . . 1 2 . . . . 1 . . . 1 9 . . . 1 . . Recyclers Shooed 2 | . 1 . . . . . . . . . . . . . . . . . . . . . . . . . . . 1 Parts Field Recycled . | . . . . . . . . . . . . . . . . . . . . . . . . . . . . . . Retrieved Matter . | . . . . . . . . . . . . . . . . . . . . . . . . . . . . . . Parts Self-Destructed 75 | . . . 15 . . . . . . 4 . 16 . 1 26 1 12 . . . . . . . . . . . . Prevented . | . . . . . . . . . . . . . . . . . . . . . . . . . . . . . . Parts Restored 17 | . . . . . . . . . . . . . . . . . . . . . . . . . . . . 17 . Faulty 17 | . . . . . . . . . . . . . . . . . . . . . . . . . . . . 17 . Kills | -11 -10 -10 -10 -9 -9 -6 -6 -6 -6 -6 -6 -5 -5 -5 -5 -5 -4 -4 -4 -4 -4 -4 -3 -3 -3 -2 -2 -2 -1 ------- Run | Yrd Mat Min Sub Rec Scr Fac Was Fac Low Low Dat Pro Fac Upp Upp Zhi Pro Fac Ext Cet Arc Hub Res Arm Lab Res Qua Frg Acc Combat Hostiles Destroyed 536 | . 10 2 17 . . 36 . 9 . 2 . 9 14 1 11 . 3 25 5 1 . 2 1 15 . 2 9 108 254 Melee 121 | . . . . . . 5 . 9 . 2 . 9 14 1 11 . 3 14 3 1 . 2 1 13 . 2 9 20 2 Guns 111 | . 9 . 7 . . 1 . . . . . . . . . . . . . . . . . . . . . 55 39 Cannons 141 | . 1 1 8 . . 3 . . . . . . . . . . . 3 2 . . . . 1 . . . 20 102 AOE 157 | . . . 2 . . 27 . . . . . . . . . . . 8 . . . . . . . . . 13 107 Classes Destroyed 32 | 2 5 1 4 . . 6 . . . . . 1 1 . 1 . . 1 . . . . . . . . . 8 2 Worker 29 | . . . . . . 8 . 1 . . . . . . . . . 6 . . . 4 1 . . 2 . . 7 Builder 16 | . . 1 . . . 2 . . . . . . 1 . . . . 1 . . . . . . . . 1 . 10 Tunneler 8 | 3 . 1 . . . 2 . . . . . . 1 . . . . . . . . . . . . . . . 1 Hauler 20 | . 1 . . . . 2 . 2 . . . 1 2 . . . . 1 . . . 1 9 . . . 1 . . Recycler 9 | 1 . . . . . 2 . . . . . . 1 . . . . 1 . . . . 2 . . . . . 2 Mechanic 23 | . . . . . . . . . . . . . . . . . . . . . . . . . . . . 6 17 Operator 14 | . 1 . . . . . . . . . . . 1 . . . . . 1 . 9 . . . . . 1 1 . Drone 25 | . . . . . . . . . . . . 1 . . . . . . . . . . . . . . . 24 . Turret 2 | . . . 2 . . . . . . . . . . . . . . . . . . . . . . . . . . Watcher 12 | . 1 . . . . . . . . . . . . . . . . . . 1 . 3 1 4 . . . . 2 Swarmer 47 | . 6 . 5 . . 7 . . . 2 . 2 . . 1 . . 9 . . . . . 5 . . 5 5 . Saboteur 30 | . . . . . . . . . . . . . . . . . . 1 . . . . . . . . . 5 24 Grunt 155 | . 4 2 1 . . 20 . 4 . . . 5 3 . 4 . 1 5 1 . . . 1 1 . . . 8 95 Brawler 31 | . . . . . . 1 . . . . . . . . 1 . 1 . . . . 2 . 2 . . . 5 19 Duelist 15 | . . . . . . . . . . . . . . . 1 . . . . . . . . . . . . 1 13 Protector 16 | . . . . . . 1 . . . . . . . . . . . . . . . . . . . . . 4 11 Researcher 2 | . . . . . . . . . . . . . . . . . . . . . . . . . . . . 2 . Sentry 29 | . . . 1 . . 4 . 1 . . . 1 2 1 2 . 1 1 4 . . . . 2 . . . 9 . Demolisher 1 | . . . . . . . . . . . . . . . . . . . . . . . . . . . . . 1 Specialist 6 | . . . . . . . . . . . . . . . . . . . . . . . . . . . . 1 5 Hunter 24 | . . . . . . 1 . 2 . . . . 4 . . . . 6 . . . . . . . 2 . 5 4 Programmer 66 | . . . . . . 2 . 2 . . . . 4 . 2 . . 3 . . . . . 5 . . 4 6 38 Heavy 2 | . . . . . . . . . . . . . 1 . . . . . . . . . . . . . . . 1 Cetus Guard 1 | . . . . . . . . . . . . . . . . . . . . 1 . . . . . . . . . Decapitator 10 | . . . . . . . . . . . . . . . . . . . . . . . . . . . . 10 . Immortal 6 | . . . . . . . . . . . . . . . . . . . . . . . . . . . . 6 . Investigator 4 | . . . . . . . . . . . . . . . . . . . . . . . . . . . . . 4 Striker 25 | . . . . . . . . . . . . . . . . . . . . . . . . . . . . 4 21 Executioner 28 | . . . . . . . . . . . . . . . . . . . . . . . . . . . . 7 21 Alpha 7 3 | . . . . . . . . . . . . . . . . . . . . . . . . . . . . 3 . V-Series 5 | . . . . . . . . . . . . . . . . . . . . . . . . . . . . 5 . Artisan 2 | . . . 2 . . . . . . . . . . . . . . . . . . . . . . . . . . Subdweller 10 | . . . 10 . . . . . . . . . . . . . . . . . . . . . . . . . . Botcube 1 | . . . . . . 1 . . . . . . . . . . . . . . . . . . . . . . . Decomposer 1 | . . . . . . . . . 1 . . . . . . . . . . . . . . . . . . . . Assembled 1 | . . . . . . . . . . . . . . . . . . . . . . . . . . . . . 1 Best Kill Streak 37 | 3 3 2 4 . . 10 . 6 . 2 . 3 3 1 2 . 2 10 2 1 9 7 3 5 . 2 5 14 37 Combat Bots Only 34 | . 3 2 2 . . 7 . 6 . 2 . 3 3 1 2 . 2 7 2 1 . 2 1 5 . 2 5 14 34 Max Kills in Single Turn 6 | 1 1 1 2 . . 5 . 1 1 1 . 1 1 1 1 . 1 3 1 1 1 5 1 1 . 1 2 6 6 Gunslinging 1 | . . . . . . . . . . . . . . . . . . . . . . . . . . . . 1 . Exploded 6 | . . . 2 . . 3 . . . . . . . . . . . 3 . . . . . . . . . 6 6 Melee 2 | . . . . . . 1 . 1 . 1 . 1 1 1 1 . 1 1 1 1 . 1 1 1 . 1 2 1 1 Uniques/NPCs Destroyed 2 | . . . . . . . . . . . . . . . . . . . . 1 . . . . . . . . 1 A7 (-4/Cetus) 6S-H0T (-1/Access) Combat | -11 -10 -10 -10 -9 -9 -6 -6 -6 -6 -6 -6 -5 -5 -5 -5 -5 -4 -4 -4 -4 -4 -4 -3 -3 -3 -2 -2 -2 -1 -------- Run | Yrd Mat Min Sub Rec Scr Fac Was Fac Low Low Dat Pro Fac Upp Upp Zhi Pro Fac Ext Cet Arc Hub Res Arm Lab Res Qua Frg Acc Hostile Shots Fired 2540 | . 31 7 93 . . 179 . 59 . 2 . 21 126 14 29 . 28 209 39 2 . 94 17 336 . 28 53 446 727 Missed 1093 | . 8 2 20 . . 71 . 23 . 1 . 5 40 5 5 . 12 98 18 . . 58 10 208 . 13 23 204 269 Intercepted 9 | . . . . . . . . . . . . . . . . . . . . . . . . . . . . 9 . Deflected 18 | . . . . . . . . . . . . . . . . . . . . . . . . . . . . . 18 Hits 1447 | . 23 5 73 . . 108 . 36 . 1 . 16 86 9 24 . 16 111 21 2 . 36 7 128 . 15 30 242 458 Melee 62 | . . . . . . . . . . . . . . . 4 . 3 1 . . . 5 . 8 . 1 . 26 14 Projectile 1385 | . 23 5 73 . . 108 . 36 . 1 . 16 86 9 20 . 13 110 21 2 . 31 7 120 . 14 30 216 444 AOE 16 | . . . . . . . . . . . . . 1 . . . . 1 4 . . 2 . . . 3 . 3 2 Critical Strikes 123 | . . . 6 . . 1 . 3 . . . 3 6 1 1 . 1 6 3 . . 3 1 4 . 3 2 33 46 Actively Blocked 99 | . . . . . . . . . . . . . 3 1 1 . 1 6 3 . . 3 . . . 3 2 33 43 Part Disruptions 3 | . . . . . . . . . . . . . 1 . . . . . . . . . . . . . . . 2 Actively Blocked 1 | . . . . . . . . . . . . . 1 . . . . . . . . . . . . . . . . Damage Taken 27547 | . 310 67 1385 . . 1530 . 400 . 14 . 314 2140 216 570 . 337 2110 878 78 . 729 161 1838 . 378 669 6898 6525 Core 4760 | . 45 . 89 . . 200 . 51 . 14 . 21 83 . 19 . 13 349 210 . . 89 16 369 . 71 56 1457 1608 Absorbed by Shields 4577 | . . . . . . . . . . . . . 69 . . . . . 26 27 . . . . . . . 247 4208 Redirected to Shielding 617 | . . . . . . . . . . . . . 104 . . . . . . . . . . . . 11 46 456 . Ignored by Resistances 2183 | . . . . . . . . 15 . . . . . . . . . . . . . . . . . 81 83 415 1589 Regen/Repaired (Parts) 1123 | . . . . . . . . . . . . . . . . . . . . 38 200 159 169 . . 38 486 33 . Core Remaining (%) 60 | 100 . . . . 46 . . . . . . 66 . . . . 88 . . . . 43 . . 70 . . 9 . Volleys Fired 1152 | 14 31 11 134 . 1 74 . 5 3 . . 18 2 . . . . 14 33 1 . 5 2 20 2 7 . 380 395 Largest 4 | 2 2 2 2 . 1 2 . 1 1 . . 1 1 . . . . 1 1 1 . 1 1 1 1 1 . 2 4 Hottest 328 | 90 136 136 136 . . 120 . 113 113 . . 113 113 . . . . 60 60 . . 35 110 120 120 120 . 140 328 Shots Fired 1569 | 28 62 20 220 . 1 84 . 5 3 . . 18 3 . . . . 15 33 1 . 5 2 19 2 7 . 514 527 Gun 657 | 28 58 . 46 . . 10 . . . . . . 2 . . . . . . . . 5 . . . . . 339 169 Cannon 793 | . 4 18 169 . . 52 . 5 3 . . 18 1 . . . . 12 32 . . . 2 19 2 7 . 171 278 Launcher 114 | . . . 5 . . 22 . . . . . . . . . . . 3 . . . . . . . . . 4 80 Special 5 | . . 2 . . 1 . . . . . . . . . . . . . 1 1 . . . . . . . . . Kinetic 962 | . 58 . 19 . . 10 . . . . . . 2 . . . . 12 32 . . 5 . 6 . . . 441 377 Thermal 493 | 28 4 20 201 . . 52 . 5 3 . . 18 1 . . . . . . . . . 2 13 2 7 . 69 68 Explosive 109 | . . . . . . 22 . . . . . . . . . . . 3 . . . . . . . . . 4 80 Electromagnetic 2 | . . . . . . . . . . . . . . . . . . . . . . . . . . . . . 2 Robot Hit Streak 92 | 4 9 10 29 . 2 16 . . . . . . 3 . . . . 6 7 5 . . . 6 . . . 92 50 Robot Miss Streak 6 | 2 2 6 3 . . 4 . . . . . . 2 . . . . 4 4 . . . . 1 . . . 5 1 Penetration Max 3 | . . . . . . . . . . . . . . . . . . . . . . . . . . . . 1 3 Secondary Targets 13 | . . . . . . . . . . . . . . . . . . . . . . . . . . . . 11 2 Max Gunslinging Chain 1 | . . . . . . . . . . . . . . . . . . . . . . . . . . . . 1 1 Shots Hit Robots 1559 | 17 38 8 118 . 1 71 . 26 1 3 . 26 77 8 52 5 16 71 30 16 16 15 39 37 . 10 30 428 400 Core Hits 1106 | 5 19 4 39 . . 89 . 15 . 2 . 14 30 2 17 3 5 51 15 5 7 12 15 21 . 5 11 246 474 Critical Kills 39 | . 1 1 . . . . . . . . . . . . . . . . . . . . . 1 . . . 22 14 Critical Parts Destroyed 32 | . . . . . . 1 . . . . . . . . . . . . . . . . . . . . . 25 6 Critical Strikes 208 | 3 1 1 1 . . 5 . 4 . . . 5 6 . 4 . 4 8 3 1 1 3 6 11 . . 1 70 70 Burn 3 | 3 . . . . . . . . . . . . . . . . . . . . . . . . . . . . . Meltdown 6 | . . 1 . . . . . . . . . . . . . . . . . . . . . 1 . . . . 4 Destroy 68 | . 1 . 1 . . 1 . . . . . . . . . . . . . . . . . . . . . 49 16 Blast 58 | . . . . . . . . . . . . . . . . . . 1 2 . . . . . . . . 5 50 Sever 41 | . . . . . . 4 . 4 . . . 5 6 . 3 . 2 2 1 1 1 3 6 . . . . 3 . Impale 32 | . . . . . . . . . . . . . . . 1 . 2 5 . . . . . 10 . . 1 13 . Melee Attacks 822 | . . . . . . 26 . 56 7 3 . 32 94 11 66 7 22 92 22 15 26 36 68 56 15 27 43 80 18 Impact . | . . . . . . . . . . . . . . . . . . . . . . . . . . . . . . Slashing 497 | . . . . . . 26 . 56 7 3 . 32 94 8 25 4 9 31 22 15 26 36 67 . . . 6 15 15 Piercing 325 | . . . . . . . . . . . . . . 3 41 3 13 61 . . . . 1 56 15 27 37 65 3 Sneak Attacks 92 | . . . . . . 6 . 4 1 . . 1 6 . . . . 9 3 11 9 1 14 2 . 2 3 19 1 Combat Hostiles 5 | . . . . . . . . 1 . . . . . . . . . . 1 . . . . 1 . . 1 1 . Follow-up Attacks 89 | . . . . . . . . . . . . . . 1 22 2 8 25 . 2 4 6 6 5 . . 2 6 . Damage Inflicted 134113 | 211 492 165 2805 . . 7264 . 1298 70 123 . 1153 3144 340 2015 422 556 3855 1795 856 1370 1042 2646 2008 . 615 1783 24819 73266 Guns 17669 | 211 451 . 828 . . 179 . . . . . . 22 . . . . . . . . . . . . . . 10509 5469 Cannons 37855 | . 41 165 1593 . . 859 . . . . . . . . . . . 434 830 . . . . 282 . . . 5849 27802 Explosions 50246 | . . . 384 . . 5071 . . . . . . . . . . . 820 . . . 423 . . . . . 3782 39766 Melee 28343 | . . . . . . 1155 . 1298 70 123 . 1153 3122 340 2015 422 556 2601 965 856 1370 619 2646 1726 . 615 1783 4679 229 Ramming . | . . . . . . . . . . . . . . . . . . . . . . . . . . . . . . Kinetic 47903 | . 451 . 619 . . 179 . . . . . . 22 . . . . 434 830 . . . . . . . . 15564 29804 Thermal 8148 | 211 41 165 2186 . . 859 . . . . . . . . . . . . . . . 190 . 282 . . . 794 3420 Explosive 49439 | . . . . . . 5071 . . . . . . . . . . . 820 . . . . . . . . . 3782 39766 Electromagnetic 280 | . . . . . . . . . . . . . . . . . . . . . . 233 . . . . . . 47 Impact . | . . . . . . . . . . . . . . . . . . . . . . . . . . . . . . Slashing 17534 | . . . . . . 1155 . 1298 70 123 . 1153 3122 340 865 204 226 993 965 856 1370 619 2646 . . . 332 1056 141 Piercing 10809 | . . . . . . . . . . . . . . . 1150 218 330 1608 . . . . . 1726 . 615 1451 3623 88 Highest Corruption 16 | . . . . . . 3 . . . . . . 6 1 7 7 7 3 3 . . 1 . 7 7 1 1 16 11 Average Corruption 7 | . . . . . . 2 . . . . . . 4 1 4 7 7 2 2 . . 1 . 4 7 1 1 12 4 Corruption Purged 11 | . . . . . . 3 . . . . . . 5 . . . . . 3 . . . . . . . . . . Corruption Blocked . | . . . . . . . . . . . . . . . . . . . . . . . . . . . . . . Effects 436 | . . . . . . 1 . . . . . . 28 4 14 5 7 8 20 . . . . 8 4 3 3 272 59 Message Errors 103 | . . . . . . 1 . . . . . . 10 1 2 2 1 2 4 . . . . 1 2 . 1 66 10 Matter Fused 89 | . . . . . . . . . . . . . 6 2 5 . 2 1 2 . . . . . 2 1 . 53 15 Heat Flow Errors 40 | . . . . . . . . . . . . . . . 1 2 . 1 3 . . . . 1 . . . 30 2 Energy Discharges 53 | . . . . . . . . . . . . . 1 1 2 . 1 . 2 . . . . 2 . 1 1 38 4 Parts Rejected 9 | . . . . . . . . . . . . . 2 . . . . 2 1 . . . . . . . . 2 2 Parts Fused 14 | . . . . . . . . . . . . . 1 . . . 1 . 2 . . . . . . . . 7 3 Data Loss (minor) 61 | . . . . . . . . . . . . . 4 . 4 . 2 1 5 . . . . 2 . . . 34 9 Data Loss (major) 27 | . . . . . . . . . . . . . 2 . . 1 . . . . . . . . . 1 1 15 7 Misfires 3 | . . . . . . . . . . . . . 1 . . . . 1 . . . . . . . . . . 1 Alerts 5 | . . . . . . . . . . . . . 1 . . . . . 1 . . . . 1 . . . 2 . Misdirections 14 | . . . . . . . . . . . . . . . . . . . . . . . . . . . . 13 1 Weapon Failures 18 | . . . . . . . . . . . . . . . . . . . . . . . . 1 . . . 12 5 Overload Shots . | . . . . . . . . . . . . . . . . . . . . . . . . . . . . . . Overflow Damage 8932 | . . . 29 . . 437 . 41 53 17 . 8 118 . 130 139 . 226 54 1 466 91 269 128 . 47 213 1447 5018 Projectiles 3273 | . . . 3 . . 51 . . . . . . . . . . . . 43 . . . . . . . . 154 3022 Explosions 2285 | . . . 26 . . 243 . . . . . . . . . . . 1 . . . 18 . . . . . 112 1885 Melee 3374 | . . . . . . 143 . 41 53 17 . 8 118 . 130 139 . 225 11 1 466 73 269 128 . 47 213 1181 111 Knockbacks 96 | . . . . . . . . . . . . . . . . . . . 4 . . . . . . . . 26 66 Impact . | . . . . . . . . . . . . . . . . . . . . . . . . . . . . . . Kinetic 86 | . . . . . . . . . . . . . . . . . . . 4 . . . . . . . . 26 56 Secondary 10 | . . . . . . . . . . . . . . . . . . . . . . . . . . . . . 10 Self-Inflicted Damage 278 | . . . 47 . . 136 . . . . . . . . . . . . . . . 95 . . . . . . . Shots 4 | . . . 1 . . 2 . . . . . . . . . . . . . . . 1 . . . . . . . Rammed . | . . . . . . . . . . . . . . . . . . . . . . . . . . . . . . Targets Rammed . | . . . . . . . . . . . . . . . . . . . . . . . . . . . . . . Kicked . | . . . . . . . . . . . . . . . . . . . . . . . . . . . . . . Crushed . | . . . . . . . . . . . . . . . . . . . . . . . . . . . . . . Highest Temperature 450 | 150 75 297 228 . . 450 . 136 136 . . 214 64 . 171 200 . 232 225 . . 8 48 279 44 56 . 227 208 Average Temperature 74 | 65 32 112 44 . . 107 . 60 61 . . 75 19 . 83 93 . 83 59 . . 3 26 129 24 22 . 97 51 Received Heat Transfer 2153 | . 87 36 261 . . 289 . 90 . . . 147 156 45 138 . 57 105 90 4 . 21 30 126 . . . 204 267 Thermoelectric Energy+ 14 | . . . . . . . . . . . . . . . . . . . . . . . . . . . . 14 . Effects 3 | . . . 1 . . 2 . . . . . . . . . . . . . . . . . . . . . . . Shutdowns 1 | . . . . . . 1 . . . . . . . . . . . . . . . . . . . . . . . Energy Bleed 1 | . . . 1 . . . . . . . . . . . . . . . . . . . . . . . . . . Damage (minor) 1 | . . . . . . 1 . . . . . . . . . . . . . . . . . . . . . . . Siege Activations . | . . . . . . . . . . . . . . . . . . . . . . . . . . . . . . Martial Activations . | . . . . . . . . . . . . . . . . . . . . . . . . . . . . . . Shielding Activations . | . . . . . . . . . . . . . . . . . . . . . . . . . . . . . . Robots Disrupted . | . . . . . . . . . . . . . . . . . . . . . . . . . . . . . . Combat Hostiles . | . . . . . . . . . . . . . . . . . . . . . . . . . . . . . . Robots Corrupted 1 | . . . . . . . . . . . . . . . . . . . . . . . . . . . . . 1 Combat Hostiles 1 | . . . . . . . . . . . . . . . . . . . . . . . . . . . . . 1 Parts Fried 4 | . . . . . . . . . . . . . . . . . . . . . . . . . . . . . 4 Impact Corruptions 4 | . . . . . . . . . . . . . . . . . . . . . . . . . . . . . 4 Robots Melted 6 | . . 1 . . . . . . . . . . . . . . . . . . . . . 1 . . . . 4 Combat Hostiles 5 | . . 1 . . . . . . . . . . . . . . . . . . . . . 1 . . . . 3 Parts Melted 14 | 2 . 1 4 . . . . . . . . . . . . . . . . . . . . . . . . 2 5 Heat Transferred 8492 | 816 74 296 3611 . . 1073 . . . . . . . . . . . . . . . 100 . 222 . . . 425 1875 Parts Sabotaged 14 | . . . . . . . . . . . . . . . . . 2 . . . . . . 1 . . . . 11 Parts Stolen . | . . . . . . . . . . . . . . . . . . . . . . . . . . . . . . Parts Stripped . | . . . . . . . . . . . . . . . . . . . . . . . . . . . . . . Power Chain Reactions 1 | . . . . . . . . . . . . . . . . . . . . . . 1 . . . . . . . Alert | -11 -10 -10 -10 -9 -9 -6 -6 -6 -6 -6 -6 -5 -5 -5 -5 -5 -4 -4 -4 -4 -4 -4 -3 -3 -3 -2 -2 -2 -1 ------- Run | Yrd Mat Min Sub Rec Scr Fac Was Fac Low Low Dat Pro Fac Upp Upp Zhi Pro Fac Ext Cet Arc Hub Res Arm Lab Res Qua Frg Acc Maximum Alert Level 5 | . . . . . . 4 1 . . . . . 2 . . . . 1 3 2 1 5 3 3 . . 1 5 5 Low Security (%) 53 | 100 100 100 . 100 . 20 9 100 . . . . 44 . . . . 77 3 . 94 13 . 7 . 100 71 11 . Level 1 8 | . . . . . . 24 90 . . . . . 35 . . . . 22 17 . 5 3 . 51 . . 28 3 . Level 2 6 | . . . . . . 9 . . . . . . 19 . . . . . 66 100 . 11 3 25 . . . 3 . Level 3 7 | . . . . . . 26 . . . . . . . . . . . . 12 . . 61 96 16 . . . 10 . Level 4 4 | . . . . . . 19 . . . . . . . . . . . . . . . 6 . . . . . 18 . Level 5 12 | . . . . . . . . . . . . . . . . . . . . . . 3 . . . . . 51 28 High Security 5 | . . . . . . . . . . . . . . . . . . . . . . . . . . . . . 71 Max Security . | . . . . . . . . . . . . . . . . . . . . . . . . . . . . . . Sterilizations 1 | . . . . . . . . . . . . . . . . . . . . . . . . . . . . . 1 Peak Influence 8198 | 10 95 50 . 60 . 1180 384 154 . . . . 509 . . . . 390 923 665 398 1610 844 1067 . 45 231 2962 8198 Initial 1776 | . . 4 . 60 . . 384 124 . . . . 509 . . . . 31 179 516 216 . 840 403 . . 22 119 1776 Average 755 | . 50 2 . 14 . 627 283 21 . . . . 222 . . . . 123 526 595 23 777 753 415 . 22 102 1486 4536 Influence Increases 22854 | 20 301 62 240 . . 1760 . 306 . 55 . 200 924 20 394 10 150 776 1574 299 282 2238 360 1348 . 225 429 3862 7019 Destroy 0b10 Robot/C 11580 | . 200 40 180 . . 920 . 180 . 40 . 160 280 20 260 . 60 500 620 140 80 640 20 360 . 40 180 1720 4940 Destroy 0b10 Robot/NC 940 | 20 15 10 . . . 85 . 15 . . . 10 30 . . 10 . 45 35 10 45 60 65 20 . 10 15 190 250 Destroy Leader 1656 | . 54 10 . . . 184 . 44 . . . . 94 . 20 . . 92 44 . . 130 30 88 . 10 32 180 644 Allied During Kill 1547 | . . . . . . 85 . . . . . . . . 9 . . . 500 137 125 495 . 11 . . . 81 104 Successful Hack 399 | . . . . . . . . 35 . . . . 4 . . . . . 12 . . 15 82 43 . 84 52 48 24 Select Force Hacks 50 | . . . . . . . . . . . . . . . . . . . . . . 50 . . . . . . . Disable Machine 1110 | . . . . . . 240 . . . . . . . . . . . 15 15 . 30 240 . 45 . . 60 435 30 Anti-Garrison Action 150 | . . . . . . . . . . . . . . . . . . . . . . . . . . . . 150 . Destroy Structure 2217 | . 2 2 . . . 246 . 32 . . . . 36 . . . . 94 108 12 2 338 58 46 . 66 15 368 792 Advance Influence 450 | . . . . . . . . . . . . . 450 . . . . . . . . . . . . . . . . Partial Spotted 210 | . . . . . . . . . . . . . . . . . . . 60 . . 60 30 30 . . . 30 . Lose Combat Pursuer 2445 | . 30 . 60 . . . . . . 15 . 30 30 . 105 . 90 30 180 . . 210 75 705 . 15 75 660 135 Active Sensor Use 100 | . . . . . . . . . . . . . . . . . . . . . . . . . . . . . 100 Influence Decreases 14677 | 20 290 25 163 125 . 661 921 333 151 55 . 105 988 51 294 110 100 459 1018 681 823 636 1192 1097 1021 185 256 1113 1804 Entered New Map 5460 | . . 7 26 65 . . 715 54 57 . . . 36 13 . 100 . 19 188 407 325 . 762 367 1021 . 18 94 1186 Time Decay 6596 | 20 280 18 137 60 . 451 206 269 94 55 . 105 542 38 254 10 80 320 470 254 458 286 410 310 . 185 238 728 318 Search Patrol Dispatched 200 | . . . . . . . . . . . . . 200 . . . . . . . . . . . . . . . . Lost Part 921 | . 10 . . . . 60 . 10 . . . . 60 . 20 . . 120 50 . . 40 10 130 . . . 211 200 Lost Ally 900 | . . . . . . . . . . . . . . . 20 . 20 . 310 20 40 160 10 140 . . . 80 100 Purge Threat 600 | . . . . . . 150 . . . . . . 150 . . . . . . . . 150 . 150 . . . . . Squads Dispatched 153 | . 2 . . . . 12 . 7 . . . . 9 . 1 . 1 5 2 . . 12 16 6 . 4 3 5 68 Investigation 26 | . . . . . . 1 . 2 . . . . 5 . . . . . . . . 2 10 1 . 2 . 2 1 Extermination 18 | . . . . . . 1 . 3 . . . . 3 . . . . 1 . . . 2 . 2 . 1 2 1 2 Reinforcement 31 | . 2 . . . . 5 . 1 . . . . 1 . . . . 2 1 . . 6 6 1 . 1 1 2 2 Assault 73 | . . . . . . 3 . . . . . . . . 1 . 1 . 1 . . 2 . 2 . . . . 63 Garrison 5 | . . . . . . 2 . 1 . . . . . . . . . 2 . . . . . . . . . . . Intercept . | . . . . . . . . . . . . . . . . . . . . . . . . . . . . . . Searches Triggered 2 | . . . . . . . . . . . . . 2 . . . . . . . . . . . . . . . . Unchained Authorized 1 | . . . . . . . . . . . . . . . . . . . . . . . . . . . . . 1 Data Miner Redirects 2 | . . . . . . . . . . . . . 1 . . . . . . . . 1 . . . . . . . Construction Impeded 5 | . . . . . . 2 . . . . . . . . . . . . 1 . . 1 . . . . . . 1 Haulers Reinforced 4 | . . . . . . 1 . . . . . . . . . . . . . . . . 3 . . . . . . Active Scanning Responses 1 | . . . . . . . . . . . . . . . . . . . . . . . . . . . . . 1 Cargo Convoy Interrupts 1 | . . . . . . . . . . . . . . . . . . 1 . . . . . . . . . . . Stealth | -11 -10 -10 -10 -9 -9 -6 -6 -6 -6 -6 -6 -5 -5 -5 -5 -5 -4 -4 -4 -4 -4 -4 -3 -3 -3 -2 -2 -2 -1 --------- Run | Yrd Mat Min Sub Rec Scr Fac Was Fac Low Low Dat Pro Fac Upp Upp Zhi Pro Fac Ext Cet Arc Hub Res Arm Lab Res Qua Frg Acc Distress Signals 53 | . 2 1 . . . 1 . . . . . 1 1 . . . . 1 2 2 . 7 8 2 . . 1 20 4 Communications Jammed . | . . . . . . . . . . . . . . . . . . . . . . . . . . . . . . Distress Signals . | . . . . . . . . . . . . . . . . . . . . . . . . . . . . . . Times Spotted 1059 | . 18 2 24 . . 47 . 10 . 3 . 13 19 5 19 . 13 55 35 6 10 50 17 88 . 8 18 280 319 Peak Tracking Total 26 | . 6 2 4 . . 6 . 5 . 3 . 5 3 5 7 . 5 18 8 4 1 13 5 26 . 5 5 19 23 Tactical Retreats 71 | . 2 . 2 . . . . . . 1 . 2 2 . 4 . 4 2 5 . . 6 4 10 . 1 3 17 6 Traps | -11 -10 -10 -10 -9 -9 -6 -6 -6 -6 -6 -6 -5 -5 -5 -5 -5 -4 -4 -4 -4 -4 -4 -3 -3 -3 -2 -2 -2 -1 ------- Run | Yrd Mat Min Sub Rec Scr Fac Was Fac Low Low Dat Pro Fac Upp Upp Zhi Pro Fac Ext Cet Arc Hub Res Arm Lab Res Qua Frg Acc Traps Triggered 13 | . 2 . 1 . . 1 . . . . . . . . . . . . . . . . . 1 . 1 1 6 . Indirectly . | . . . . . . . . . . . . . . . . . . . . . . . . . . . . . . Trap Hack Attempts . | . . . . . . . . . . . . . . . . . . . . . . . . . . . . . . Triggered . | . . . . . . . . . . . . . . . . . . . . . . . . . . . . . . Disarmed . | . . . . . . . . . . . . . . . . . . . . . . . . . . . . . . Reprogrammed . | . . . . . . . . . . . . . . . . . . . . . . . . . . . . . . Reused 1 | . . . 1 . . . . . . . . . . . . . . . . . . . . . . . . . . Traps Extracted . | . . . . . . . . . . . . . . . . . . . . . . . . . . . . . . Installed 3 | . . . 1 . . . . . . . . . . . 2 . . . . . . . . . . . . . . Triggered . | . . . . . . . . . . . . . . . . . . . . . . . . . . . . . . Most Traps Carried 5 | . . 4 5 5 5 . . . . . . . . . . . . . . . . . . . . . . . . Machines | -11 -10 -10 -10 -9 -9 -6 -6 -6 -6 -6 -6 -5 -5 -5 -5 -5 -4 -4 -4 -4 -4 -4 -3 -3 -3 -2 -2 -2 -1 ---------- Run | Yrd Mat Min Sub Rec Scr Fac Was Fac Low Low Dat Pro Fac Upp Upp Zhi Pro Fac Ext Cet Arc Hub Res Arm Lab Res Qua Frg Acc Machines Disabled 92 | . . . 5 . . 16 . . . . . . . . . . . 1 3 . 2 16 . 3 5 . 4 35 2 Max in Single Turn 12 | . . . 3 . . 3 . . . . . . . . . . . 1 1 . . 12 . 1 1 . 1 2 1 Garrison Access 9 | . . . . . . 1 . 2 . . . . . . . . . 1 . . . 1 2 . . 1 . 1 . Network Hub 2 | . . . . . . . . . . . . . . . . . . . . . . 2 . . . . . . . Machines Repaired . | . . . . . . . . . . . . . . . . . . . . . . . . . . . . . . Machines Dismantled . | . . . . . . . . . . . . . . . . . . . . . . . . . . . . . . Machines Sabotaged 1 | . . . . . . . . . . . . . . . . . . . . . . 1 . . . . . . . Overloaded Fab Kills . | . . . . . . . . . . . . . . . . . . . . . . . . . . . . . . Hacking | -11 -10 -10 -10 -9 -9 -6 -6 -6 -6 -6 -6 -5 -5 -5 -5 -5 -4 -4 -4 -4 -4 -4 -3 -3 -3 -2 -2 -2 -1 --------- Run | Yrd Mat Min Sub Rec Scr Fac Was Fac Low Low Dat Pro Fac Upp Upp Zhi Pro Fac Ext Cet Arc Hub Res Arm Lab Res Qua Frg Acc Machines Accessed 94 | . . . 2 . 3 7 . 12 1 . 4 . 12 1 . 4 . 2 3 . . 5 11 5 . 10 3 8 1 Terminals 41 | . . . . . . 4 . 6 . . . . 4 . . . . 1 3 . . 4 2 4 . 7 1 4 1 Fabricators 2 | . . . . . . . . . . . . . 1 . . . . . . . . . 1 . . . . . . Repair Stations 3 | . . . . . . . . . . . . . 1 . . . . . . . . . 1 . . . 1 . . Recycling Units 15 | . . . . . . 1 . 2 . . . . 3 . . . . . . . . . 3 1 . 2 . 3 . Scanalyzers 6 | . . . . . . . . 2 . . . . 1 . . . . . . . . . 2 . . . 1 . . Garrison Access 12 | . . . . . . 2 . 2 . . . . 2 . . . . 1 . . . 1 2 . . 1 . 1 . Total Hacks 330 | . . . 6 . 11 19 . 28 1 . 28 . 28 1 . 16 . 9 8 . . 18 36 21 . 34 16 44 6 Successful 171 | . . . 6 . 11 6 . 14 1 . 28 . 9 1 . 16 . 4 5 . . 6 23 9 . 16 7 8 1 Failed 159 | . . . . . . 13 . 14 . . . . 19 . . . . 5 3 . . 12 13 12 . 18 9 36 5 Catastrophic 45 | . . . . . . 4 . 2 . . . . 8 . . . . 2 1 . . 1 . 1 . 8 2 15 1 Database Lockouts . | . . . . . . . . . . . . . . . . . . . . . . . . . . . . . . Manual 111 | . . . . . . 12 . 7 . . . . 8 . . . . 7 8 1 . 11 9 10 . 13 . 25 . Terminals 156 | . . . . . . 12 . 15 . . . . 12 . . . . 8 8 . . 17 7 19 . 24 4 24 6 Fabricators 10 | . . . . . . . . . . . . . 5 . . . . . . . . . 5 . . . . . . Repair Stations 17 | . . . . . . . . . . . . . 2 . . . . . . . . . 7 . . . 8 . . Recycling Units 34 | . . . . . . 3 . 4 . . . . 3 . . . . . . . . . 6 2 . 3 . 13 . Scanalyzers 20 | . . . . . . . . 6 . . . . 2 . . . . . . . . . 8 . . . 4 . . Garrison Access 30 | . . . . . . 4 . 3 . . . . 4 . . . . 1 . . . 1 3 . . 7 . 7 . Terminal Hacks 102 | . . . 6 . 11 3 . 5 1 . 28 . 2 1 . 16 . 2 . . . 3 3 6 . 9 . 5 1 Record 27 | . . . 5 . 6 . . . . . 11 . . . . 5 . . . . . . . . . . . . . Part Schematic 15 | . . . . . . . . 1 . . 10 . . . . 3 . . . . . . . 1 . . . . . Robot Schematic 4 | . . . . . . . . . . . 4 . . . . . . . . . . . . . . . . . . Robot Analysis 9 | . . . . . 5 . . . . . . . . . . 4 . . . . . . . . . . . . . Prototype ID Bank 9 | . . . . . . . . . . . 3 . . . . 4 . . . . . . 1 1 . . . . . Open Door 3 | . . . . . . . . . 1 . . . . 1 . . . . . . . . . . . 1 . . . Branch Access Points 3 | . . . . . . . . . . . . . . . . . . 1 . . . . 1 . . 1 . . . Machine Index 1 | . . . . . . . . . . . . . . . . . . . . . . . . . . . . 1 . Terminal Index 3 | . . . . . . . . 1 . . . . . . . . . . . . . 1 . . . 1 . . . Alert Level 4 | . . . . . . 1 . 1 . . . . 1 . . . . . . . . . . 1 . . . . . Unreport Threat 4 | . . . . . . 1 . . . . . . 1 . . . . . . . . 1 . 1 . . . . . Locate Traps 8 | . . . . . . 1 . 1 . . . . . . . . . . . . . . . . . 2 . 3 1 Hauler Manifests 5 | . . . . . . . . 1 . . . . . . . . . 1 . . . 1 1 . . 1 . . . Zone Layout 6 | . . . . . . . . . . . . . . . . . . . . . . . . 2 . 3 . 1 . Proto ID Catalog 1 | . . . 1 . . . . . . . . . . . . . . . . . . . . . . . . . . Fabricator Hacks 3 | . . . . . . . . . . . . . 1 . . . . . . . . . 2 . . . . . . Load Schematic 2 | . . . . . . . . . . . . . 1 . . . . . . . . . 1 . . . . . . Build 1 | . . . . . . . . . . . . . . . . . . . . . . . 1 . . . . . . Repair Station Hacks 11 | . . . . . . . . . . . . . 1 . . . . . . . . . 6 . . . 4 . . Scan Component 6 | . . . . . . . . . . . . . 1 . . . . . . . . . 3 . . . 2 . . Repair 5 | . . . . . . . . . . . . . . . . . . . . . . . 3 . . . 2 . . Recycling Unit Hacks . | . . . . . . . . . . . . . . . . . . . . . . . . . . . . . . Scanalyzer 13 | . . . . . . . . 4 . . . . . . . . . . . . . . 6 . . . 3 . . Insert Component 2 | . . . . . . . . 1 . . . . . . . . . . . . . . 1 . . . . . . Analyze 2 | . . . . . . . . 1 . . . . . . . . . . . . . . 1 . . . . . . Retrieve Study 9 | . . . . . . . . 2 . . . . . . . . . . . . . . 4 . . . 3 . . Garrison Access Hacks 8 | . . . . . . 1 . 2 . . . . . . . . . 1 . . . 1 2 . . 1 . . . Seal Access 8 | . . . . . . 1 . 2 . . . . . . . . . 1 . . . 1 2 . . 1 . . . Unauthorized Hacks 34 | . . . . . . 2 . 3 . . . . 5 . . . . 1 5 . . 2 4 3 . 6 . 3 . Terminals 20 | . . . . . . 1 . 1 . . . . 2 . . . . 1 5 . . 2 1 2 . 4 . 1 . Track 4 | . . . . . . . . . . . . . . . . . . . 1 . . . . . . 2 . 1 . Assimilate 4 | . . . . . . . . 1 . . . . . . . . . . 1 . . . 1 1 . . . . . Botnet 7 | . . . . . . 1 . . . . . . 2 . . . . 1 1 . . . . . . 2 . . . Disrupt 3 | . . . . . . . . . . . . . . . . . . . 2 . . . . 1 . . . . . Sabotage 2 | . . . . . . . . . . . . . . . . . . . . . . 2 . . . . . . . Fabricators . | . . . . . . . . . . . . . . . . . . . . . . . . . . . . . . Repair Stations . | . . . . . . . . . . . . . . . . . . . . . . . . . . . . . . Recycling Units 14 | . . . . . . 1 . 2 . . . . 3 . . . . . . . . . 3 1 . 2 . 2 . Fedlink 13 | . . . . . . 1 . 2 . . . . 3 . . . . . . . . . 3 1 . 2 . 1 . Scrapoids 1 | . . . . . . . . . . . . . . . . . . . . . . . . . . . . 1 . Scanalyzers . | . . . . . . . . . . . . . . . . . . . . . . . . . . . . . . Garrison Access . | . . . . . . . . . . . . . . . . . . . . . . . . . . . . . . Data Cores Recovered 3 | . . . . . . . . . . . . . 1 . . . . . 1 . . . . . . . . 1 . Used 1 | . . . . . . . . . . . . . . . . . . . . . . . . . . . . 1 . Hacking Detections 53 | . . . . . . 6 . 10 . . . . 9 . . . . 1 1 . . 2 7 4 . 3 2 8 . Full Trace Events 3 | . . . . . . . . . . . . . 2 . . . . . . . . . 1 . . . . . . Feedback Events . | . . . . . . . . . . . . . . . . . . . . . . . . . . . . . . Feedback Blocked . | . . . . . . . . . . . . . . . . . . . . . . . . . . . . . . Robot Schematics Acquired 7 | . . . . . . . . . . . 4 . . . . . . . . . . . . . . . . 3 . Robots Built . | . . . . . . . . . . . . . . . . . . . . . . . . . . . . . . Authchips . | . . . . . . . . . . . . . . . . . . . . . . . . . . . . . . Time . | . . . . . . . . . . . . . . . . . . . . . . . . . . . . . . Total Robot Build Rating . | . . . . . . . . . . . . . . . . . . . . . . . . . . . . . . Part Schematics Acquired 26 | . . . . . . . . 2 . . 10 . . . . 3 . . . . . . 1 1 . . . 9 . Parts Built 1 | . . . . . . . . . . . . . . . . . . . . . . . 1 . . . . . . Authchips . | . . . . . . . . . . . . . . . . . . . . . . . . . . . . . . Time 68 | . . . . . . . . . . . . . . . . . . . . . . . 68 . . . . . . Total Part Build Rating 8 | . . . . . . . . . . . . . . . . . . . . . . . 8 . . . . . . Part Studies Acquired 9 | . . . . . . . . 2 . . . . . . . . . . . . . . 4 . . . 3 . . Parts Repaired 5 | . . . . . . . . . . . . . . . . . . . . . . . 3 . . . 2 . . Time 148 | . . . . . . . . . . . . . . . . . . . . . . . 108 . . . 40 . . Parts Recycled . | . . . . . . . . . . . . . . . . . . . . . . . . . . . . . . Recycled Matter . | . . . . . . . . . . . . . . . . . . . . . . . . . . . . . . Retrieved Matter . | . . . . . . . . . . . . . . . . . . . . . . . . . . . . . . Retrieved Components . | . . . . . . . . . . . . . . . . . . . . . . . . . . . . . . Parts Scanalyzed 2 | . . . . . . . . 1 . . . . . . . . . . . . . . 1 . . . . . . Part Schematics Acquired 2 | . . . . . . . . 1 . . . . . . . . . . . . . . 1 . . . . . . Parts Damaged . | . . . . . . . . . . . . . . . . . . . . . . . . . . . . . . Bothacking | -11 -10 -10 -10 -9 -9 -6 -6 -6 -6 -6 -6 -5 -5 -5 -5 -5 -4 -4 -4 -4 -4 -4 -3 -3 -3 -2 -2 -2 -1 ------------ Run | Yrd Mat Min Sub Rec Scr Fac Was Fac Low Low Dat Pro Fac Upp Upp Zhi Pro Fac Ext Cet Arc Hub Res Arm Lab Res Qua Frg Acc Used RIF Installer . | . . . . . . . . . . . . . . . . . . . . . . . . . . . . . . Robots Hacked . | . . . . . . . . . . . . . . . . . . . . . . . . . . . . . . Non-combat . | . . . . . . . . . . . . . . . . . . . . . . . . . . . . . . Combat . | . . . . . . . . . . . . . . . . . . . . . . . . . . . . . . Robot Hacks Applied . | . . . . . . . . . . . . . . . . . . . . . . . . . . . . . . Relay Couplers Released 8 | . . . . . . 3 . . . . . . . . . . . 3 . . . 2 . . . . . . . Machine Destruction 2 | . . . . . . . . . . . . . . . . . . . . . . 2 . . . . . . . Programmers 6 | . . . . . . 3 . . . . . . . . . . . 3 . . . . . . . . . . . Fabnet Peak Effective % . | . . . . . . . . . . . . . . . . . . . . . . . . . . . . . . Robots Rewired 31 | . . . . . . 1 . . . . . . . . 2 . 1 . 19 1 . . . 7 . . . . . Allies Hacked 1 | . . . . . . . . . . . . . . . . . . . . . . 1 . . . . . . . Hacks Repelled 1 | . . . . . . . . . . . . . . . . . . . . . . . . . . . . 1 . Allies | -11 -10 -10 -10 -9 -9 -6 -6 -6 -6 -6 -6 -5 -5 -5 -5 -5 -4 -4 -4 -4 -4 -4 -3 -3 -3 -2 -2 -2 -1 -------- Run | Yrd Mat Min Sub Rec Scr Fac Was Fac Low Low Dat Pro Fac Upp Upp Zhi Pro Fac Ext Cet Arc Hub Res Arm Lab Res Qua Frg Acc Total Allies 63 | . . . . . 1 1 . . . . . . . . 2 . 1 . 30 7 . . 1 8 . . . 5 7 Largest Group 17 | . . . . . 1 2 . . . . . . . . 2 1 1 . 17 13 11 10 1 4 . . . 5 7 Highest-Rated Group 965 | . . . . . 56 86 . . . . . . . . 60 25 47 . 652 965 797 744 10 186 . . . 320 93 Highest-Rated Ally 159 | . . . . . 56 56 . . . . . . . . 30 25 47 . 159 152 111 111 10 48 . . . 64 14 Initial UFD Resources 97 | . . . . . . 22 32 32 38 38 38 40 40 56 56 56 59 59 59 59 59 59 62 78 80 83 97 97 . Total Orders 20 | . . . . . 2 . . . . . . . . . . . . . 3 4 . 4 2 3 . . . 2 . STAY 12 | . . . . . 1 . . . . . . . . . . . . . 2 2 . 3 1 2 . . . 1 . FOLLOW 8 | . . . . . 1 . . . . . . . . . . . . . 1 2 . 1 1 1 . . . 1 . Ally Attacks 667 | . . . . . . 61 . . . . . . . . 12 . 4 . 169 53 29 164 . 39 . . . 101 35 Total Damage 19569 | . . . . . . 1428 . . . . . . . . 179 . 99 . 4993 1566 698 6293 . 1119 . . . 2499 695 Kills 104 | . . . . . . 12 . . . . . . . . 2 . . . 35 7 4 34 . 3 . . . 5 2 Allies Corrupted 5 | . . . . . . . . . . . . . . . . . 1 . . . . 2 . 1 . . . 1 . Allies Melted 2 | . . . . . . . . . . . . . . . . . . . 1 . . . . . . . . 1 . Intel | -11 -10 -10 -10 -9 -9 -6 -6 -6 -6 -6 -6 -5 -5 -5 -5 -5 -4 -4 -4 -4 -4 -4 -3 -3 -3 -2 -2 -2 -1 ------- Run | Yrd Mat Min Sub Rec Scr Fac Was Fac Low Low Dat Pro Fac Upp Upp Zhi Pro Fac Ext Cet Arc Hub Res Arm Lab Res Qua Frg Acc Active Infowar (turns) 43052 | 6 689 2562 . . 6891 284 421 1636 933 448 118 1204 1489 699 652 190 331 819 1197 558 9611 636 993 667 8 323 342 6923 2422 Optics 26750 | . . . . . 651 . . . . . . . 754 699 652 190 331 819 1197 558 9611 636 993 667 . . . 6570 2422 Sensors 12214 | . . . . . 2281 284 421 1636 933 448 118 1204 923 . 362 190 331 171 . . . 429 993 478 8 323 342 339 . A.S.S. 2278 | . . . . . . . . . . . . . . . . . . . . . . . . . . . . . 2278 Terrain 338 | . . . . . 338 . . . . . . . . . . . . . . . . . . . . . . . . Traps 79 | . . . . . . . . . . . . . . . . . . 79 . . . . . . . . . . . Seismic 3257 | 6 689 2562 . . . . . . . . . . . . . . . . . . . . . . . . . . . Cloaking 1953 | . . . . . 4 . . . . . . . . . . . . . . . . . . 7 . . . 1804 138 Spoofing 3017 | . . . . . 3017 . . . . . . . . . . . . . . . . . . . . . . . . Jamming 974 | . . . . . 600 . . . . . . . . . . . . . . . . . . 42 . . 4 328 . Robot Analysis Total 9 | . . . . . 5 . . . . . . . . . . 4 . . . . . . . . . . . . . Derelict Logs Recovered 18 | . . 2 3 . 5 . . . 2 1 . 1 . 2 1 . 1 . . . . . . . . . . . . Drone Launches . | . . . . . . . . . . . . . . . . . . . . . . . . . . . . . . Drone Recoveries . | . . . . . . . . . . . . . . . . . . . . . . . . . . . . . . Exploration | -11 -10 -10 -10 -9 -9 -6 -6 -6 -6 -6 -6 -5 -5 -5 -5 -5 -4 -4 -4 -4 -4 -4 -3 -3 -3 -2 -2 -2 -1 ------------- Run | Yrd Mat Min Sub Rec Scr Fac Was Fac Low Low Dat Pro Fac Upp Upp Zhi Pro Fac Ext Cet Arc Hub Res Arm Lab Res Qua Frg Acc Turns Passed 75704 | 111 689 3131 7317 284 29501 1409 421 1636 933 448 118 1204 1542 699 652 190 331 819 1197 558 9611 636 993 685 172 431 500 7064 2422 Spaces Moved 43461 | 52 360 731 3378 95 12041 838 224 1022 410 423 119 826 1149 672 500 165 245 674 1126 524 1577 1021 1471 1092 172 691 726 9732 1405 Core 10054 | 1 . . . . 8574 . . . . . . . . . . . . . . . 1344 . . 11 . . . 124 . Treads 238 | . 108 4 121 . 5 . . . . . . . . . . . . . . . . . . . . . . . . Legs 9220 | . . . . . 2152 838 224 1022 410 423 119 826 1149 672 500 165 245 379 . . . . . . . . . 96 . Wheels 5269 | 51 252 727 3257 95 887 . . . . . . . . . . . . . . . . . . . . . . . . Hover 3413 | . . . . . . . . . . . . . . . . . . . . . . . . . . . . 2008 1405 Flight 15267 | . . . . . 423 . . . . . . . . . . . . 295 1126 524 233 1021 1471 1081 172 691 726 7504 . Fastest Speed 6 | 50 90 105 90 295 34 120 185 100 100 100 100 100 100 100 100 100 100 27 26 30 30 26 31 31 42 35 35 6 36 Average Speed 135 | 90 123 119 157 295 242 129 185 125 100 100 100 100 100 100 103 100 100 75 26 41 601 28 31 35 43 36 35 24 47 Slowest Speed 700 | 100 240 240 295 295 700 185 185 185 105 100 100 100 175 100 176 100 100 190 30 110 700 112 34 200 122 42 35 120 92 Overloaded Moves 163 | . . . . . . . . . . . . . . . . . . . . . . . . . . . . 163 . Propulsion Burnouts . | . . . . . . . . . . . . . . . . . . . . . . . . . . . . . . Robots Hopped 85 | . . . . . . . . . . . . . . . . . . . 7 . . 12 4 22 . . 5 35 . Potential Cave-ins 6 | . . . . . . . . . . . . . . . . . . . . . . . . . . . . 6 . Cave-ins Triggered 1 | . . . . . . . . . . . . . . . . . . . . . . . . . . . . 1 . Teleports 3 | . . . . . . . . . . . . . . . . . . . . . . . . . . . . 3 . Exploration Rate (%) 57 | 4 52 98 96 19 83 25 82 32 57 54 69 86 35 82 60 61 51 22 85 61 98 51 38 57 90 19 67 75 16 Regions Visited 29 Branch Regions 20 Pre-discovered Areas 12 | . . 3 2 . 1 . . 1 . . 1 . . . 1 3 . . . . . . . . . . . . . Known Exits Taken 15 | . . . . . . . . 1 1 1 1 1 1 1 . . 1 1 . . . 1 1 1 1 1 1 . . Unknown Exits Taken 12 | 1 1 1 1 1 1 . . . . . . . . . 1 1 . . 1 1 1 . . . . . . 1 . Scrap Searched 35 | . . 1 11 . 11 . . . 2 . . 4 . 3 3 . . . . . . . . . . . . . . Spaces Dug 338 | . . 1 . . . 2 . 29 6 . . 12 17 2 1 . 1 13 28 . . 5 29 22 . 15 5 81 69 Terrain Destroyed 1746 | . . 2 44 . . 320 . 32 9 . . 20 18 2 1 . 1 44 36 . . 179 29 29 . 22 5 165 788 Melee 156 | . . . . . . . . 27 6 . . 2 17 2 1 . 1 13 3 . . 3 27 18 . 15 5 3 13 Projectile 500 | . . 2 . . . 9 . 5 3 . . 18 1 . . . . 8 33 . . 2 2 11 . 7 . 137 262 AOE 1090 | . . . 44 . . 311 . . . . . . . . . . . 23 . . . 174 . . . . . 25 513 Terrain Rammed . | . . . . . . . . . . . . . . . . . . . . . . . . . . . . . . Walls Destroyed . | . . . . . . . . . . . . . . . . . . . . . . . . . . . . . . Machines Disabled . | . . . . . . . . . . . . . . . . . . . . . . . . . . . . . . Actions | -11 -10 -10 -10 -9 -9 -6 -6 -6 -6 -6 -6 -5 -5 -5 -5 -5 -4 -4 -4 -4 -4 -4 -3 -3 -3 -2 -2 -2 -1 --------- Run | Yrd Mat Min Sub Rec Scr Fac Was Fac Low Low Dat Pro Fac Upp Upp Zhi Pro Fac Ext Cet Arc Hub Res Arm Lab Res Qua Frg Acc Total 58072 | 83 531 2958 5146 101 12333 1068 233 1354 927 447 118 1179 1500 692 615 186 323 919 1959 846 1681 1309 1906 1288 245 828 918 13798 2581 Wait 11332 | 3 104 2193 1548 . 181 87 . 263 506 22 . 288 211 . 51 . 55 115 649 266 81 255 321 96 36 74 121 3259 547 Move 43280 | 51 359 730 3377 94 12040 838 223 1021 409 422 118 825 1148 671 499 164 244 673 1113 523 1576 998 1463 1051 171 690 715 9669 1405 Hop 66 | . . . . . . . . . . . . . . . . . . . 5 . . 10 3 18 . . 5 25 . Pick Up 298 | 7 6 8 33 4 46 7 5 1 . . . 5 10 1 . 6 1 5 1 10 1 2 21 5 8 4 4 79 18 Fast Attach 246 | 7 2 . 7 . 20 11 . 3 1 . . 2 10 5 4 5 2 14 13 10 1 5 10 5 3 9 5 79 13 Attach 123 | . 1 . 2 . 1 8 . . . . . 3 7 . . . 1 12 2 2 1 2 2 4 5 1 7 33 29 Detach 47 | . . . . . 1 1 . . . . . . 1 1 . . . 1 1 1 . 2 . . 1 1 4 16 16 Swap 206 | 1 24 12 9 1 . 3 . 2 . . . 1 4 . 1 1 . 5 . 1 2 . 7 7 . 4 10 44 67 Drop 344 | . 4 4 13 2 43 7 5 3 1 . . 5 13 4 3 7 1 19 7 16 2 5 15 8 4 11 6 119 17 Fire 1152 | 14 31 11 134 . 1 74 . 5 3 . . 18 2 . . . . 14 33 1 . 5 2 20 2 7 . 380 395 Melee 705 | . . . . . . 26 . 56 7 3 . 32 94 10 41 3 13 61 21 13 17 25 62 50 15 27 41 70 18 Ram . | . . . . . . . . . . . . . . . . . . . . . . . . . . . . . . Kick . | . . . . . . . . . . . . . . . . . . . . . . . . . . . . . . Crush . | . . . . . . . . . . . . . . . . . . . . . . . . . . . . . . Escape Stasis 81 | . . . . . . . . . . . . . . . . . . . . . . . . . . . . 25 56 Rewire 167 | . . . . . . 6 . . . . . . . . 14 . 6 . 114 3 . . . 24 . . . . . Trap 3 | . . . 1 . . . . . . . . . . . 2 . . . . . . . . . . . . . . Miscellaneous 22 | . . . 22 . . . . . . . . . . . . . . . . . . . . . . . . . . Route ------- -11/Scrapyard -10/Materials (discovered 2 exits: [*Mat] / [*Min]) -10/Mines (discovered 3 exits: [*Mat x2] / *Sub) -10/Subcaves (discovered 3 exits: [*Mat x2] / [*Rec]) -9/Recycling -9/Scraptown (discovered 2 exits: *Fac x2) -6/Factory -6/Waste -6/Factory (discovered 2 exits: *Fac / *Low) -6/Lower Caves -6/Lower Caves -6/Data Miner -5/Proximity Caves -5/Factory (discovered 3 exits: *Fac x2 / *Upp) -5/Upper Caves -5/Upper Caves (discovered 2 exits: *Fac / *Zhi) -5/Zhirov -4/Proximity Caves -4/Factory (discovered 6 exits: *Res x2 / Upp x2 / *Ext x2) -4/Extension (discovered 2 exits: *Res / *Cet) -4/Cetus (discovered 2 exits: *Res / [*Arc]) -4/Archives (discovered 3 exits: *Res / *Hub x2) -4/Hub_04(d) (discovered 3 exits: *Res x3) -3/Research (discovered 3 exits: *Arm / Tes x2) -3/Armory (discovered 2 exits: *Res / *Lab) -3/Lab -2/Research (discovered 2 exits: *Qua x2) -2/Quarantine (discovered 2 exits: *Sec / *Frg) -2/Protoforge -1/Access History --------- Turn | Location | Event 17 | -11/Scrapyard | Discovered new exit (range 15) 112 | -11/Scrapyard | Entered Materials 168 | -10/Materials | Discovered new exit (range 11) 313 | -10/Materials | Build established: Mutant 677 | -10/Materials | Discovered new exit (range 4) 801 | -10/Materials | Entered Mines 812 | -10/Mines | Learned location of Mines (-9) 859 | -10/Mines | Discovered new exit (range 10) 889 | -10/Mines | Discovered new exit (range 10) 1113 | -10/Mines | Found a hidden stash of uninstalled traps 1133 | -10/Mines | Assembled infested the area 3403 | -10/Mines | Found a damaged Exp. Sensor Array with a note attached 3405 | -10/Mines | Found Prototype Device 3610 | -10/Mines | Discovered new exit (range 12) 3818 | -10/Mines | Learned location of Storage (-9) 3932 | -10/Mines | Entered Subcaves 4118 | -10/Subcaves | Shifting Twisted Machinery released Battle Rifle 4153 | -10/Subcaves | Shifting Twisted Machinery released Sub. Power Source 4430 | -10/Subcaves | Shifting Twisted Machinery released Scrap Shield 4492 | -10/Subcaves | Shifting Twisted Machinery released Sub. Monowheel 4599 | -10/Subcaves | Discovered new exit (range 15) 4624 | -10/Subcaves | Disturbed a concealed Subdweller 4937 | -10/Subcaves | Ambushed by angry Subdweller bent on revenge 5442 | -10/Subcaves | Shifting Twisted Machinery released Shrapnel Trap 5493 | -10/Subcaves | Learned location of Zion (-7) 5493 | -10/Subcaves | Met a Zionite searching for "candidates" 5686 | -10/Subcaves | Shifting Twisted Machinery released Sub. Power Source 5821 | -10/Subcaves | Discovered new exit (range 10) 6119 | -10/Subcaves | A swath of the cavern ceiling suddenly collapsed 7485 | -10/Subcaves | A swath of the cavern ceiling suddenly collapsed 7722 | -10/Subcaves | Learned Materials terminal intel 7888 | -10/Subcaves | Learned 2 Materials zone layouts 7946 | -10/Subcaves | Visited 4L-MR0's lab 7978 | -10/Subcaves | Visited Clippyterm 7981 | -10/Subcaves | Learned location of Deep Caves (-7) 7981 | -10/Subcaves | Learned Factory fabricator intel 8307 | -10/Subcaves | Disturbed a concealed Subdweller 8464 | -10/Subcaves | Discovered new exit (range 12) 8466 | -10/Subcaves | Core integrity fell below 50% 8635 | -10/Subcaves | Build established: Subdweller-Mutant 9114 | -10/Subcaves | Build established: Hauler-Mutant 10244 | -10/Subcaves | Found Arachnoskeleton 10251 | -10/Subcaves | Found Prototype Device 11249 | -10/Subcaves | Entered Recycling 11454 | -9/Recycling | Scanned before Scraplab entrance 11498 | -9/Recycling | Entered Scraplab 11524 | -9/Recycling | Discovered new exit (range 3) 11533 | -9/Recycling | Entered Scraptown 11935 | -9/Scraptown | Visited UFD Registry 11935 | -9/Scraptown | Registered with UFD as "Pipechassis" 11970 | -9/Scraptown | Visited Cyclists 11991 | -9/Scraptown | Entered Cyclist Reading Room 12129 | -9/Scraptown | Visited Botcube Research 12180 | -9/Scraptown | Visited Abandonware Association 12224 | -9/Scraptown | Learned abandonware demo "OVRCLOCK.EXE" 12233 | -9/Scraptown | Learned abandonware demo "REPAIR.EXE" 12233 | -9/Scraptown | Learned abandonware demo "REBOOT5.EXE" 12300 | -9/Scraptown | Visited Junk Repository 12395 | -9/Scraptown | Visited A0-MCA Data Center 12433 | -9/Scraptown | Received an X-ray algorithm 12448 | -9/Scraptown | Visited DA-N13 Charitable Foundation 12475 | -9/Scraptown | Found DCF Scrap (30 items) 12525 | -9/Scraptown | Visited Analyses Database 12575 | -9/Scraptown | Visited Junk Cannon Lab 12628 | -9/Scraptown | Visited Junk Repository 12731 | -9/Scraptown | Visited Chapter 10 12793 | -9/Scraptown | Visited Scrap Suit Storage 13235 | -9/Scraptown | Given an S rating by A0-MCA 13236 | -9/Scraptown | Found Prototype Processor 13238 | -9/Scraptown | Found A0-MCA's Component Scanner 13293 | -9/Scraptown | Delivered Scrap Shield to a Scientist 13409 | -9/Scraptown | Visited Awakened 13417 | -9/Scraptown | Visited Comm Corps 13424 | -9/Scraptown | Visited Assassins FH 13431 | -9/Scraptown | Visited Bundlers 13469 | -9/Scraptown | Heard Great Nut preacher, LISTEN AND RECITE! 13510 | -9/Scraptown | Discovered new exit (range 11) 13726 | -9/Scraptown | Scanned Subdweller tech in exchange for log data 13729 | -9/Scraptown | Learned Research security intel 13731 | -9/Scraptown | Learned location of Extension (-4) 13736 | -9/Scraptown | Learned Research stockpile data 13737 | -9/Scraptown | Learned Factory terminal intel 14117 | -9/Scraptown | Found Scrap Suit 14202 | -9/Scraptown | Build established: Mutant 14345 | -9/Scraptown | Found Botcube 14359 | -9/Scraptown | Botcube activated 14381 | -9/Scraptown | Botcube completed mutation into legged form, armed with 2 guns 14419 | -9/Scraptown | Attached CPS modules to Mutated Botcube 14636 | -9/Scraptown | Identified Sfc. Transmogrifier 25354 | -9/Scraptown | Build established: Gladiator 25658 | -9/Scraptown | Build established: Mutant 29477 | -9/Scraptown | Build established: Gladiator 29895 | -9/Scraptown | Build established: Mutant 40933 | -9/Scraptown | Met Optimus 40933 | -9/Scraptown | Accepted into 0bPrime 41026 | -9/Scraptown | Discovered new exit (range 5) 41034 | -9/Scraptown | Entered Factory 41034 | -6/Factory | Accompanied by 1 ally 41034 | -6/Factory | Evolved 8 slots: Propulsion x1, Utility x6, Weapon x1 41035 | -6/Factory | Loaded intel: 26 terminal locations 41036 | -6/Factory | Loaded intel: 5 fabricator locations 41325 | -6/Factory | Build established: Hacker-Mutant 41661 | -6/Factory | Garrison activated, responded to threat 41686 | -6/Factory | Destroyed 7 combat bots 41781 | -6/Factory | Murdered Mutated Botcube 41781 | -6/Factory | Destroyed Mutated Botcube 41791 | -6/Factory | Found Botcube 41871 | -6/Factory | Destroyed 7 combat bots 41955 | -6/Factory | Lost 3 parts (3u) 42084 | -6/Factory | First assault squad dispatched 42320 | -6/Factory | Attached Arachnoskeleton, gained temporary slots: Propulsion x3 42443 | -6/Factory | Loaded intel: 7 recycling unit locations 42443 | -6/Factory | Sucked down chute 42443 | -6/Factory | Entered Waste 42443 | -6/Waste | The area was eerily silent 42555 | -6/Waste | Found Damper Plating 42716 | -6/Waste | Discovered new exit (range 11) 42727 | -6/Waste | Build established: Mutant 42862 | -6/Waste | Identified exit to Factory 42864 | -6/Waste | Entered Factory 43356 | -6/Factory | Found Hvy. Insulated Plating 43638 | -6/Factory | Loaded intel: 8 recycling unit locations 43638 | -6/Factory | Learned location of Protoforge (-2) 43859 | -6/Factory | Discovered new exit (range 11) 43880 | -6/Factory | Identified exit to Factory 44454 | -6/Factory | Garrison activated, responded to threat 44483 | -6/Factory | Discovered new exit (range 15) 44499 | -6/Factory | Identified exit to Lower Caves 44500 | -6/Factory | Entered Lower Caves 44502 | -6/Lower Caves | UFD Scientist delivered a prototype 44594 | -6/Lower Caves | Learned Factory trap positions 44666 | -6/Lower Caves | Identified exit to Lower Caves 45433 | -6/Lower Caves | Entered another Lower Caves area 45693 | -6/Lower Caves | Learned location of 1 exit from Factory 45704 | -6/Lower Caves | Discovered new exit (range 4) 45707 | -6/Lower Caves | Identified exit to Data Miner 45881 | -6/Lower Caves | Entered Data Miner 45881 | -6/Data Miner | Discovered new exit (range 6) 45900 | -6/Data Miner | Met Data Miner 45926 | -6/Data Miner | Learned location of Section 7 (-2) 45926 | -6/Data Miner | Acquired the access code to Warlord's prototype stash 45934 | -6/Data Miner | Received God Mode back door access code from Data Miner 45959 | -6/Data Miner | Identified exit to Proximity Caves 45999 | -6/Data Miner | Entered Proximity Caves 46002 | -5/Proximity Caves | Spotter reported a threat 46002 | -5/Proximity Caves | Spotter reported a threat 46149 | -5/Proximity Caves | Spotter reported a threat 46180 | -5/Proximity Caves | Learned Factory emergency access door positions 47155 | -5/Proximity Caves | Discovered exit to Factory (range 16) 47171 | -5/Proximity Caves | Attracted the attention of an 0b10 checkpoint 47203 | -5/Proximity Caves | Entered Factory 47203 | -5/Factory | Evolved 2 slots: Utility x2 47204 | -5/Factory | Identified exit to Factory 47205 | -5/Factory | Loaded intel: 112 trap records 47503 | -5/Factory | Search patrols dispatched 47670 | -5/Factory | Loaded intel: 8 recycling unit locations 47715 | -5/Factory | Discovered new exit (range 4) 47718 | -5/Factory | Identified exit to Upper Caves 47803 | -5/Factory | Search patrols dispatched 47971 | -5/Factory | Lost 3 parts (1p2u) 48253 | -5/Factory | Incoming investigation squad redirected 48495 | -5/Factory | Build established: Scavenger-Mutant 48502 | -5/Factory | Discovered exit to Factory (range 17) 48745 | -5/Factory | Entered Upper Caves 48747 | -5/Upper Caves | Attracted the attention of an 0b10 checkpoint 48824 | -5/Upper Caves | Build established: Gladiator 49025 | -5/Upper Caves | Learned Factory terminal intel 49053 | -5/Upper Caves | Identified exit to Upper Caves 49444 | -5/Upper Caves | Entered another Upper Caves area 49465 | -5/Upper Caves | Discovered exit to Factory (range 9) 49573 | -5/Upper Caves | Attracted the attention of an 0b10 outpost 50052 | -5/Upper Caves | Attracted the attention of an 0b10 checkpoint 50074 | -5/Upper Caves | Discovered new exit (range 17) 50096 | -5/Upper Caves | Entered Zhirov 50096 | -5/Zhirov | Accompanied by 1 ally 50096 | -5/Zhirov | Discovered new exit (range 3) 50114 | -5/Zhirov | Met Zhirov 50133 | -5/Zhirov | Learned location of Quarantine (-2) 50133 | -5/Zhirov | Learned location of Testing (-3) 50133 | -5/Zhirov | Learned location of Command (-1) 50142 | -5/Zhirov | Zhirov requested help retrieving the SGEMP Prototype 50165 | -5/Zhirov | Found Alien Artifact 50165 | -5/Zhirov | Identified Integrated Reactor 50165 | -5/Zhirov | Installed Integrated Reactor, increased core energy generation (+10) 50244 | -5/Zhirov | Found Alien Artifact 50286 | -5/Zhirov | Entered Proximity Caves 50286 | -4/Proximity Caves | Accompanied by 1 ally 50380 | -4/Proximity Caves | Learned Research security intel 50439 | -4/Proximity Caves | Attracted the attention of an 0b10 outpost 50572 | -4/Proximity Caves | Discovered exit to Factory (range 20) 50617 | -4/Proximity Caves | Entered Factory 50617 | -4/Factory | Evolved 2 slots: Propulsion x2 50618 | -4/Factory | Identified exit to Extension 50619 | -4/Factory | Loaded intel: 28 terminal locations 50634 | -4/Factory | Identified exit to Upper Caves 50868 | -4/Factory | Build established: Hacker-Gladiator 50891 | -4/Factory | Identified Expert System 50907 | -4/Factory | Discovered new exit (range 3) 51253 | -4/Factory | Garrison activated, responded to threat 51286 | -4/Factory | Destroyed 7 combat bots 51345 | -4/Factory | Spotted Executioner 51346 | -4/Factory | Cargo convoy interrupted 51346 | -4/Factory | Discovered new exit (range 19) 51436 | -4/Factory | Entered Extension 51451 | -4/Extension | Rescued a captive Derelict 51452 | -4/Extension | Rescued a captive Derelict 51736 | -4/Extension | Rescued a captive Derelict 51742 | -4/Extension | Spotted B-86 Titan 51833 | -4/Extension | Lost 6 allies 52024 | -4/Extension | Build established: Commander-Sprinter 52186 | -4/Extension | First assault squad dispatched 52232 | -4/Extension | Spotted B-86 Titan 52260 | -4/Extension | Allies destroyed B-86 Titan 52275 | -4/Extension | Allies destroyed B-86 Titan 52294 | -4/Extension | Rescued a captive Derelict 52295 | -4/Extension | Rescued a captive Derelict 52302 | -4/Extension | Rescued A7 52304 | -4/Extension | Lost 6 allies 52314 | -4/Extension | Lost 3 parts (1n2u) 52460 | -4/Extension | Attached CPS modules to A7 52493 | -4/Extension | Rescued a captive Derelict 52494 | -4/Extension | Rescued a captive Derelict 52495 | -4/Extension | Rescued a captive Derelict 52496 | -4/Extension | Rescued a captive Derelict 52506 | -4/Extension | Lost 3 allies 52569 | -4/Extension | Discovered new exit (range 10) 52586 | -4/Extension | P-70 Sage assimilated allied WI-LWA(g) 52602 | -4/Extension | Discovered new exit (range 10) 52633 | -4/Extension | Entered Cetus 52633 | -4/Cetus | Accompanied by 7 allies (A7) 52638 | -4/Cetus | Acquired a Cetus Manufacturing Module code from A7 52664 | -4/Cetus | Spotted Cetus Guard 52664 | -4/Cetus | Spotted Cetus Guard 52666 | -4/Cetus | Spotted Cetus Guard 52667 | -4/Cetus | Allies destroyed Cetus Guard 52668 | -4/Cetus | Spotted Cetus Guard 52679 | -4/Cetus | Destroyed Cetus Guard 52679 | -4/Cetus | Allies destroyed Cetus Guard 52694 | -4/Cetus | Started Cetus Manufacturing Module 52696 | -4/Cetus | Discovered new exit (range 21) 52719 | -4/Cetus | Manufactured an Enhanced Grunt 52744 | -4/Cetus | Manufactured an Enhanced Grunt 52769 | -4/Cetus | Manufactured an Enhanced Grunt 52794 | -4/Cetus | Manufactured an Enhanced Grunt 52819 | -4/Cetus | Manufactured an Enhanced Grunt 52872 | -4/Cetus | Spotted Cetus Guard 52873 | -4/Cetus | Spotted Cetus Guard 52876 | -4/Cetus | Spotted Cetus Guard 52877 | -4/Cetus | Spotted Cetus Guard 52878 | -4/Cetus | Allies destroyed Cetus Guard 52884 | -4/Cetus | Allies destroyed Cetus Guard 52886 | -4/Cetus | Discovered new exit (range 21) 52892 | -4/Cetus | Rewired Cetus Guard 52894 | -4/Cetus | Allies destroyed Cetus Guard 52896 | -4/Cetus | Met Revision 17 53056 | -4/Cetus | Botcube activated 53108 | -4/Cetus | Murdered A7 53114 | -4/Cetus | Found Med. Regenerative Plating 53123 | -4/Cetus | Extracted ID and sensor layout for unrecognized location from A7's data core 53143 | -4/Cetus | Attached CPS modules to Mutated Botcube 53191 | -4/Cetus | Entered Archives 53191 | -4/Archives | Accompanied by 12 allies 53246 | -4/Archives | Discovered new exit (range 22) 53254 | -4/Archives | Discovered new exit (range 22) 53276 | -4/Archives | Discovered new exit (range 13) 53622 | -4/Archives | Build established: Commander-Mutant 62802 | -4/Archives | Entered Hub_04(d) 62802 | -4/Hub_04(d) | Accompanied by 10 allies 62813 | -4/Hub_04(d) | Spotted B-86 Titan 62911 | -4/Hub_04(d) | Allies destroyed B-86 Titan 62934 | -4/Hub_04(d) | Found Exp. Thermal Shield 63006 | -4/Hub_04(d) | Core integrity fell below 50% 63052 | -4/Hub_04(d) | First assault squad dispatched 63087 | -4/Hub_04(d) | Discovered new exit (range 17) 63185 | -4/Hub_04(d) | Lost 4 allies 63308 | -4/Hub_04(d) | Build established: Scavenger-Scout 63336 | -4/Hub_04(d) | Discovered new exit (range 21) 63342 | -4/Hub_04(d) | Discovered new exit (range 9) 63361 | -4/Hub_04(d) | Identified exit to Research 63401 | -4/Hub_04(d) | Network Hub disabled 63415 | -4/Hub_04(d) | Spotted Lightning 63417 | -4/Hub_04(d) | Network Hub disabled 63427 | -4/Hub_04(d) | Incoming investigation squad redirected 63437 | -4/Hub_04(d) | Spotted Lightning 63437 | -4/Hub_04(d) | Spotted Lightning 63438 | -4/Hub_04(d) | Entered Research 63438 | -3/Research | Evolved 2 slots: Propulsion x1, Utility x1 63503 | -3/Research | Discovered new exit (range 15) 63535 | -3/Research | Watched by a mysterious "MATRIX" hacker 63590 | -3/Research | Identified exit to Armory 63590 | -3/Research | Identified exit to Testing 63638 | -3/Research | Revision forces began assault on 0b10 63648 | -3/Research | Loaded intel: 5 recycling unit locations 63653 | -3/Research | Found Com. Tesla Bomb Launcher 63664 | -3/Research | Found Exp. Melee Analysis Suite 63804 | -3/Research | Build established: Hacker-Scout 63880 | -3/Research | Found Exp. Focal Shield 63999 | -3/Research | Repaired Field Propulsion Array+ 64049 | -3/Research | Repaired Cld. Field Propulsion Drive 64078 | -3/Research | Repaired Phasing Sabre 64093 | -3/Research | Spotted B-86 Titan 64138 | -3/Research | Research terminal network offline 64301 | -3/Research | Spotted Striker 64319 | -3/Research | Lost 4 allies 64372 | -3/Research | Spotted Striker 64377 | -3/Research | Fabricated Exp. Sensor Array (x1) 64431 | -3/Research | Entered Armory 64439 | -3/Armory | Found Adv. Force Booster 64827 | -3/Armory | Lost 3 allies 64924 | -3/Armory | Spotted B-86 Titan 65012 | -3/Armory | Loaded intel: 2 recycling unit locations 65048 | -3/Armory | Discovered new exit (range 3) 65049 | -3/Armory | Identified exit to Research 65113 | -3/Armory | Discovered new exit (range 5) 65116 | -3/Armory | Identified exit to Lab 65116 | -3/Armory | Entered Lab 65127 | -3/Lab | Discovered exit to Research (range 9) 65136 | -3/Lab | Hidden lab's door opened automatically 65136 | -3/Lab | Sensor layout match revealed 65137 | -3/Lab | Gained access to the hidden lab's interior 65144 | -3/Lab | Lost 10 parts (1p3n4u2w) 65164 | -3/Lab | Found Gui. Remote Datajack 65190 | -3/Lab | Found Alien Artifact 65197 | -3/Lab | Found Alien Artifact 65197 | -3/Lab | Identified Integrated Dissipator 65197 | -3/Lab | Installed Integrated Dissipator, increased core heat dissipation (+20) 65205 | -3/Lab | Found Alien Artifact 65215 | -3/Lab | Found Quantum Router 65220 | -3/Lab | Found AEGIS Remote Shield 65244 | -3/Lab | Found Alien Artifact 65288 | -3/Lab | Entered Research 65288 | -2/Research | Evolved 2 slots: Power x1, Utility x1 65387 | -2/Research | Identified exit to Quarantine 65434 | -2/Research | Loaded intel: 5 recycling unit locations 65503 | -2/Research | Build established: Hacker-Mutant 65719 | -2/Research | Entered Quarantine 65721 | -2/Quarantine | Identified Core Reset Matrix 65721 | -2/Quarantine | Identified Core Regenerator 65721 | -2/Quarantine | Identified Transdimensional Reconstructor (x2) 65721 | -2/Quarantine | Used Core Reset Matrix 65725 | -2/Quarantine | Detected hypermatrix surge 65725 | -2/Quarantine | Sensed 16 artifacts in vicinity 65750 | -2/Quarantine | Found Sigix Broadsword 65836 | -2/Quarantine | Found Matter Drive 65861 | -2/Quarantine | Repaired Adv. Reaction Control System? 65984 | -2/Quarantine | Found Subatomic Replicator 66041 | -2/Quarantine | Repaired Adv. Reaction Control System 66062 | -2/Quarantine | Build established: Hacker-Gladiator 66111 | -2/Quarantine | Used Subatomic Replicator to create Supercharged TR 66121 | -2/Quarantine | Found Dimensional Node Initializer 66187 | -2/Quarantine | Spotted Fortress 66211 | -2/Quarantine | Discovered new exit (range 5) 66211 | -2/Quarantine | Discovered new exit (range 6) 66213 | -2/Quarantine | Identified exit to Section 7 66214 | -2/Quarantine | Identified exit to Protoforge 66219 | -2/Quarantine | Entered Protoforge 66220 | -2/Protoforge | Sensed 2 artifacts in vicinity 66504 | -2/Protoforge | Spotted Hotshot 66504 | -2/Protoforge | Spotted Hotshot 66547 | -2/Protoforge | Crushed by falling debris 66548 | -2/Protoforge | Spotted EXE-6 66548 | -2/Protoforge | Spotted EXE-6 66553 | -2/Protoforge | Superfortress began startup sequence 66561 | -2/Protoforge | Spotted Decapitator 66568 | -2/Protoforge | Spotted Decapitator 66568 | -2/Protoforge | Destroyed EXE-6 66571 | -2/Protoforge | Found Cep. XC Strikerail 66611 | -2/Protoforge | Warped through subspace 66612 | -2/Protoforge | Core integrity fell below 50% 66612 | -2/Protoforge | Used Core Regenerator, restored core integrity (+362) 66639 | -2/Protoforge | Spotted EXE-6 66639 | -2/Protoforge | Spotted EXE-6 66659 | -2/Protoforge | UFD initiated attack on Protoforge (Readiness: Adequate) 66659 | -2/Protoforge | Loaded intel: 3 recycling unit locations 66678 | -2/Protoforge | Lost 14 parts (2p4n7u1w) 66682 | -2/Protoforge | Scrapoid reinforcements arrived 66695 | -2/Protoforge | Optimus greeted in Protoforge 66698 | -2/Protoforge | Found Exp. Core Analyzer 66706 | -2/Protoforge | Found Cep. XC Strikerail 66708 | -2/Protoforge | Found Cep. XC Strikerail 66710 | -2/Protoforge | Found Exp. Armor Integrity Analyzer 66720 | -2/Protoforge | Initialized slip node 66788 | -2/Protoforge | Lost 5 allies 66814 | -2/Protoforge | Warped through subspace to slip node 66824 | -2/Protoforge | Spotted Hotshot 66826 | -2/Protoforge | Spotted Hotshot 66845 | -2/Protoforge | Spotted Striker 66845 | -2/Protoforge | Spotted Striker 66845 | -2/Protoforge | Spotted AP7-3 66854 | -2/Protoforge | Lost 3 allies 66872 | -2/Protoforge | Spotted Striker 66879 | -2/Protoforge | Found Thermal Barrier 66880 | -2/Protoforge | Found Cep. Zero-point Core 66892 | -2/Protoforge | Found Cep. Chromion Battery 66895 | -2/Protoforge | Forge Plexus network access discovered 66919 | -2/Protoforge | Spotted Decapitator 66920 | -2/Protoforge | Spotted Decapitator 66921 | -2/Protoforge | Spotted Decapitator 66921 | -2/Protoforge | Allies destroyed Decapitator 66964 | -2/Protoforge | Spotted Striker 66965 | -2/Protoforge | Spotted Executioner 66966 | -2/Protoforge | Destroyed Striker 66967 | -2/Protoforge | Spotted Striker 66968 | -2/Protoforge | Spotted Striker 66972 | -2/Protoforge | Destroyed Executioner 66982 | -2/Protoforge | P-80 Master assimilated allied 02F04-D 66984 | -2/Protoforge | Spotted AP7-3 67015 | -2/Protoforge | Lost 5 allies 67015 | -2/Protoforge | Spotted Decapitator 67015 | -2/Protoforge | Spotted Decapitator 67018 | -2/Protoforge | Spotted Immortal 67018 | -2/Protoforge | Spotted Immortal 67019 | -2/Protoforge | Found Crosscalibrator 67020 | -2/Protoforge | Found Cep. Core Shell 67021 | -2/Protoforge | Warped through subspace 67022 | -2/Protoforge | Core integrity fell below 20% 67090 | -2/Protoforge | Build established: Scavenger-Sprinter 67200 | -2/Protoforge | Spotted Decapitator 67200 | -2/Protoforge | Spotted Decapitator 67200 | -2/Protoforge | Spotted Decapitator 67200 | -2/Protoforge | Spotted Decapitator 67279 | -2/Protoforge | Spotted Striker 67279 | -2/Protoforge | Spotted Executioner 67311 | -2/Protoforge | Spotted Overlord 67340 | -2/Protoforge | Spotted Executioner 67343 | -2/Protoforge | Destroyed AP7-3 67350 | -2/Protoforge | Destroyed Executioner 67364 | -2/Protoforge | Spotted Executioner 67369 | -2/Protoforge | Spotted Striker 67369 | -2/Protoforge | Spotted Executioner 67387 | -2/Protoforge | Spotted Striker 67390 | -2/Protoforge | Spotted Striker 67408 | -2/Protoforge | Lost 14 allies 67437 | -2/Protoforge | Spotted Striker 67437 | -2/Protoforge | Spotted Striker 67449 | -2/Protoforge | Spotted Striker 67458 | -2/Protoforge | Spotted Striker 67498 | -2/Protoforge | Lost 3 allies 67518 | -2/Protoforge | Spotted Executioner 67520 | -2/Protoforge | Spotted Striker 67528 | -2/Protoforge | System corruption reached 10% 67574 | -2/Protoforge | Lost 6 parts (3n3u) 67610 | -2/Protoforge | Spotted Striker 67612 | -2/Protoforge | Spotted Striker 67619 | -2/Protoforge | Spotted Hotshot 67627 | -2/Protoforge | Spotted Executioner 67628 | -2/Protoforge | Spotted Executioner 67662 | -2/Protoforge | Spotted Striker 67666 | -2/Protoforge | Spotted Striker 67667 | -2/Protoforge | Spotted Striker 67670 | -2/Protoforge | Spotted Striker 67689 | -2/Protoforge | Destroyed Striker 67732 | -2/Protoforge | P-80 Master assimilated allied Lugger 960 67738 | -2/Protoforge | P-80 Master assimilated allied Lugger 738 67746 | -2/Protoforge | Lost 18 allies 67791 | -2/Protoforge | Destroyed Immortal 67798 | -2/Protoforge | Found Cep. Core Shell 67802 | -2/Protoforge | Found Cep. Antimissile System 67813 | -2/Protoforge | Destroyed Immortal 67818 | -2/Protoforge | Destroyed Decapitator 67832 | -2/Protoforge | Destroyed Decapitator 67836 | -2/Protoforge | Destroyed Decapitator 67840 | -2/Protoforge | Destroyed Decapitator 67853 | -2/Protoforge | Found Cep. Antimissile System 67874 | -2/Protoforge | Found Exp. Cloaking Device 67876 | -2/Protoforge | Found Exp. Terror Saw 67977 | -2/Protoforge | Found Cep. XC Strikerail 67982 | -2/Protoforge | Found Faulty Cep. Arcsight Missile Launcher 67991 | -2/Protoforge | Found Cep. Arcsight Missile Launcher 68207 | -2/Protoforge | Spotted V854-o 68207 | -2/Protoforge | Spotted V212-i 68207 | -2/Protoforge | Spotted V458-d 68207 | -2/Protoforge | Spotted V619-d 68217 | -2/Protoforge | Destroyed V212-i 68262 | -2/Protoforge | Spotted Striker 68268 | -2/Protoforge | Spotted Striker 68273 | -2/Protoforge | UFD reported confirmed Drillbomb installation 68280 | -2/Protoforge | Found Exp. Core Analyzer 68288 | -2/Protoforge | Spotted Executioner 68289 | -2/Protoforge | Spotted Executioner 68326 | -2/Protoforge | UFD reported confirmed Drillbomb installation 68331 | -2/Protoforge | Lost 8 allies 68367 | -2/Protoforge | Spotted Striker 68369 | -2/Protoforge | Destroyed Striker 68375 | -2/Protoforge | Spotted Striker 68388 | -2/Protoforge | Found Spectral Analyzer 68391 | -2/Protoforge | Found Adv. Kinecellerator 68412 | -2/Protoforge | Spotted Executioner 68472 | -2/Protoforge | Spotted Executioner 68483 | -2/Protoforge | Spotted Striker 68485 | -2/Protoforge | Found Exp. Core Analyzer 68491 | -2/Protoforge | Spotted Executioner 68491 | -2/Protoforge | Spotted Striker 68503 | -2/Protoforge | Spotted Striker 68543 | -2/Protoforge | Lost 9 allies 68561 | -2/Protoforge | P-80 Master assimilated allied TI-58A(j) 68616 | -2/Protoforge | Lost 8 allies 68622 | -2/Protoforge | Spotted Striker 68651 | -2/Protoforge | Found Cep. Helical Railcannon 68653 | -2/Protoforge | Found Cep. Variable Chargecaster 68679 | -2/Protoforge | Spotted Decapitator 68679 | -2/Protoforge | Spotted Decapitator 68727 | -2/Protoforge | Found Exp. Remote Shield 68730 | -2/Protoforge | Found Cep. Core Shell 68734 | -2/Protoforge | Spotted V275-z 68749 | -2/Protoforge | Destroyed V275-z 68755 | -2/Protoforge | Found Exp. Targeting Computer 69036 | -2/Protoforge | Spotted Decapitator 69036 | -2/Protoforge | Spotted Decapitator 69261 | -2/Protoforge | Spotted Immortal 69287 | -2/Protoforge | Spotted Immortal 69364 | -2/Protoforge | Destroyed Immortal 69376 | -2/Protoforge | Destroyed Immortal 69458 | -2/Protoforge | Spotted Immortal 69458 | -2/Protoforge | Spotted Immortal 69505 | -2/Protoforge | Destroyed Immortal 69542 | -2/Protoforge | Destroyed Immortal 69559 | -2/Protoforge | Spotted V955-j 69579 | -2/Protoforge | Destroyed Decapitator 69581 | -2/Protoforge | Destroyed Decapitator 69587 | -2/Protoforge | Found Exp. Terror Saw 69634 | -2/Protoforge | Spotted V447-q 69692 | -2/Protoforge | Destroyed Decapitator 69698 | -2/Protoforge | Destroyed Decapitator 69717 | -2/Protoforge | Destroyed Decapitator 69730 | -2/Protoforge | Destroyed Decapitator 69747 | -2/Protoforge | Found Exp. Jetlance 69752 | -2/Protoforge | Found Cep. Deflector Sword 69755 | -2/Protoforge | Found Faulty Exp. Jetlance 69760 | -2/Protoforge | Found Faulty Exp. Jetlance 69761 | -2/Protoforge | Found Faulty Cep. Deflector Sword 69958 | -2/Protoforge | Found Cep. XC Strikerail 69963 | -2/Protoforge | Found Cep. XC Strikerail 70017 | -2/Protoforge | Found Cep. Core Shell 70020 | -2/Protoforge | Found Cep. RG22 Armor 70046 | -2/Protoforge | Destroyed V955-j 70615 | -2/Protoforge | Found Faulty Cep. Heavy Railcannon 70617 | -2/Protoforge | Found Faulty Cep. Heavy Railcannon 70844 | -2/Protoforge | Spotted AP7-3 70844 | -2/Protoforge | Spotted AP7-3 70906 | -2/Protoforge | Found Cep. Beam Splitter 70941 | -2/Protoforge | Destroyed AP7-3 71011 | -2/Protoforge | Destroyed AP7-3 71102 | -2/Protoforge | Found Cep. Core Analysis Suite 71104 | -2/Protoforge | Found Faulty Cep. Core Analysis Suite 71105 | -2/Protoforge | Found Faulty Cep. Cloak Mesh 71106 | -2/Protoforge | Found Faulty Cep. Cloak Mesh 71152 | -2/Protoforge | Found Cep. Thermoelectric Network 71154 | -2/Protoforge | Found Faulty Cep. Thermoelectric Network 71249 | -2/Protoforge | Found Cep. Plasma Driver 71278 | -2/Protoforge | Spotted Striker 71278 | -2/Protoforge | Spotted Striker 71499 | -2/Protoforge | Spotted Executioner 71539 | -2/Protoforge | Spotted Striker 71540 | -2/Protoforge | Spotted Striker 71546 | -2/Protoforge | Spotted Striker 71552 | -2/Protoforge | Spotted Striker 71559 | -2/Protoforge | Spotted Striker 71561 | -2/Protoforge | Spotted Striker 71561 | -2/Protoforge | Spotted Executioner 71569 | -2/Protoforge | UFD reported confirmed Drillbomb installation 71599 | -2/Protoforge | Lost 5 allies 71656 | -2/Protoforge | Spotted Executioner 71666 | -2/Protoforge | Spotted Executioner 71699 | -2/Protoforge | Spotted Executioner 71700 | -2/Protoforge | Lost 5 allies 71706 | -2/Protoforge | Spotted Striker 71756 | -2/Protoforge | Destroyed Striker 71882 | -2/Protoforge | Spotted Executioner 71920 | -2/Protoforge | Spotted Striker 71965 | -2/Protoforge | Spotted Striker 71978 | -2/Protoforge | Spotted Executioner 72010 | -2/Protoforge | Lost 12 allies 72060 | -2/Protoforge | Found Cep. Gyrokinetic System 72063 | -2/Protoforge | Found Cep. Combat Aerolev Unit 72065 | -2/Protoforge | Found Cep. Gyrokinetic System 72131 | -2/Protoforge | Found Cep. Antigrav Storage Unit 72133 | -2/Protoforge | Found Cep. NT7 Matterbank 72136 | -2/Protoforge | Found Cep. Chromion Battery 72152 | -2/Protoforge | Found Cep. Matter Streamer 72190 | -2/Protoforge | Found Cep. Weapon Articulator 72215 | -2/Protoforge | Found Cep. Blasthammer 72298 | -2/Protoforge | Destroyed V447-q 72303 | -2/Protoforge | Found Exp. Active Sensor Suite 72381 | -2/Protoforge | Build established: Scavenger-Mutant 72390 | -2/Protoforge | Found Cep. Core Shell 72393 | -2/Protoforge | Found Cep. RG22 Armor 72395 | -2/Protoforge | Found Cep. Energy Mantle 72396 | -2/Protoforge | Found Cep. Projectile Intercept Suite 72397 | -2/Protoforge | Found Cep. Projectile Intercept Suite 72452 | -2/Protoforge | Found Exp. Kinecellerator 72453 | -2/Protoforge | Found Exp. Kinecellerator 72456 | -2/Protoforge | Found Cep. Weapon Articulator 72556 | -2/Protoforge | Found Cep. Weapon Articulator 72648 | -2/Protoforge | Found Faulty Cep. XC Strikerail 72654 | -2/Protoforge | Found Faulty Cep. XC Strikerail 72662 | -2/Protoforge | Found Faulty Cep. Plasma Driver 72703 | -2/Protoforge | Spotted V315-z 72709 | -2/Protoforge | Destroyed V315-z 72714 | -2/Protoforge | Found Faulty Cep. Rapid Grenade Launcher 72731 | -2/Protoforge | Found Faulty Cep. Rapid Grenade Launcher 72753 | -2/Protoforge | Found Cep. Zero-point Core 72757 | -2/Protoforge | UFD reported confirmed Drillbomb installation 72762 | -2/Protoforge | Found Faulty Cep. Zero-point Core 72797 | -2/Protoforge | UFD reported confirmed Drillbomb installation 72828 | -2/Protoforge | Found Cep. Smart ZDS 72993 | -2/Protoforge | Found Cep. Gyrokinetic System 72995 | -2/Protoforge | Found Cep. Combat Aerolev Unit 73013 | -2/Protoforge | Found Cep. Gyrokinetic System 73060 | -2/Protoforge | Build established: Hacker-Mutant 73074 | -2/Protoforge | Spotted Striker 73077 | -2/Protoforge | Spotted Striker 73227 | -2/Protoforge | Spotted Executioner 73228 | -2/Protoforge | Spotted Executioner 73228 | -2/Protoforge | Spotted Executioner 73230 | -2/Protoforge | Spotted Executioner 73234 | -2/Protoforge | Destroyed Executioner 73234 | -2/Protoforge | Destroyed Executioner 73234 | -2/Protoforge | Destroyed Executioner 73234 | -2/Protoforge | Destroyed Executioner 73256 | -2/Protoforge | Discovered new exit (range 17) 73267 | -2/Protoforge | Destroyed 14 combat bots 73272 | -2/Protoforge | UFD reported confirmed Drillbomb installation 73276 | -2/Protoforge | Lost 3 allies 73283 | -2/Protoforge | Entered Access 73283 | -1/Access | Evolved 2 slots: Propulsion x1, Weapon x1 73533 | -1/Access | First assault squad dispatched 73725 | -1/Access | Unchained authorized (6S-H0T) 73883 | -1/Access | Build established: Hacker-Scout 73927 | -1/Access | Spotted 6S-H0T 73936 | -1/Access | Destroyed 6S-H0T 73985 | -1/Access | High security lockdown imminent 74010 | -1/Access | Destroyed 10 combat bots 74065 | -1/Access | High security lockdown engaged 74156 | -1/Access | Spotted Striker 74157 | -1/Access | Destroyed Striker 74170 | -1/Access | Spotted Striker 74172 | -1/Access | Destroyed Striker 74193 | -1/Access | Destroyed 7 combat bots 74271 | -1/Access | Destroyed 13 combat bots 74309 | -1/Access | Spotted Striker 74314 | -1/Access | Destroyed Striker 74382 | -1/Access | Spotted Striker 74399 | -1/Access | Destroyed Striker 74484 | -1/Access | Destroyed 14 combat bots 74529 | -1/Access | Destroyed Investigator 74587 | -1/Access | Build established: Hacker-Assassin 74619 | -1/Access | Scanned by Researcher 74619 | -1/Access | Destroyed Investigator 74642 | -1/Access | Spotted Executioner 74649 | -1/Access | Destroyed Executioner 74649 | -1/Access | Spotted Striker 74649 | -1/Access | Spotted Striker 74655 | -1/Access | Destroyed Striker 74657 | -1/Access | Destroyed Striker 74699 | -1/Access | Destroyed 26 combat bots 74704 | -1/Access | Spotted Executioner 74704 | -1/Access | Spotted Striker 74710 | -1/Access | Spotted Investigator 74713 | -1/Access | Destroyed Investigator 74715 | -1/Access | Destroyed Striker 74738 | -1/Access | Destroyed 8 combat bots 74759 | -1/Access | Destroyed Executioner 74795 | -1/Access | Spotted Executioner 74798 | -1/Access | Destroyed Executioner 74809 | -1/Access | Destroyed Executioner 74830 | -1/Access | Destroyed 8 combat bots 74831 | -1/Access | Spotted Striker 74831 | -1/Access | Spotted Striker 74831 | -1/Access | Spotted Striker 74842 | -1/Access | Destroyed Striker 74850 | -1/Access | Destroyed Striker 74896 | -1/Access | Destroyed Striker 74896 | -1/Access | Spotted Striker 74904 | -1/Access | Spotted Striker 74906 | -1/Access | Spotted Investigator 74906 | -1/Access | Spotted Striker 74906 | -1/Access | Spotted Executioner 74906 | -1/Access | Spotted Executioner 74907 | -1/Access | Destroyed Executioner 74907 | -1/Access | Destroyed Executioner 74909 | -1/Access | Destroyed Striker 74911 | -1/Access | Destroyed Investigator 74921 | -1/Access | Destroyed Striker 74924 | -1/Access | Destroyed Striker 74967 | -1/Access | Spotted Striker 74967 | -1/Access | Spotted Striker 74974 | -1/Access | Destroyed Striker 74976 | -1/Access | Destroyed Striker 75017 | -1/Access | Destroyed 34 combat bots 75053 | -1/Access | Spotted Executioner 75053 | -1/Access | Destroyed Executioner 75053 | -1/Access | Destroyed Executioner 75060 | -1/Access | Destroyed Executioner 75081 | -1/Access | Destroyed 7 combat bots 75133 | -1/Access | Spotted Executioner 75149 | -1/Access | Destroyed Executioner 75152 | -1/Access | Spotted Striker 75152 | -1/Access | Spotted Striker 75152 | -1/Access | Destroyed Striker 75164 | -1/Access | Destroyed Striker 75185 | -1/Access | Destroyed 7 combat bots 75188 | -1/Access | Spotted Executioner 75208 | -1/Access | Destroyed Executioner 75216 | -1/Access | Spotted Striker 75216 | -1/Access | Spotted Striker 75242 | -1/Access | Destroyed Striker 75245 | -1/Access | Destroyed Striker 75258 | -1/Access | Spotted Executioner 75258 | -1/Access | Spotted Executioner 75266 | -1/Access | Destroyed Executioner 75274 | -1/Access | Destroyed Executioner 75295 | -1/Access | Destroyed 17 combat bots 75303 | -1/Access | Spotted Executioner 75311 | -1/Access | Destroyed Executioner 75347 | -1/Access | Spotted Striker 75347 | -1/Access | Spotted Executioner 75347 | -1/Access | Spotted Executioner 75356 | -1/Access | Destroyed Executioner 75376 | -1/Access | System corruption reached 10% 75388 | -1/Access | Destroyed Executioner 75409 | -1/Access | Destroyed 12 combat bots 75409 | -1/Access | Lost 5 parts (2u3w) 75494 | -1/Access | Spotted Executioner 75494 | -1/Access | Spotted Executioner 75494 | -1/Access | Spotted Executioner 75496 | -1/Access | Destroyed Executioner 75498 | -1/Access | Destroyed Executioner 75503 | -1/Access | Destroyed Executioner 75546 | -1/Access | Spotted Striker 75546 | -1/Access | Spotted Striker 75549 | -1/Access | Destroyed Striker 75562 | -1/Access | Destroyed Striker 75578 | -1/Access | Spotted Executioner 75588 | -1/Access | Destroyed Executioner 75609 | -1/Access | Destroyed 12 combat bots 75615 | -1/Access | Spotted Striker 75615 | -1/Access | Spotted Executioner 75615 | -1/Access | Spotted Executioner 75619 | -1/Access | Core integrity fell below 50% 75629 | -1/Access | Spotted Executioner 75629 | -1/Access | Spotted Executioner 75650 | -1/Access | Emitted hypermatrix ping 75654 | -1/Access | Core integrity fell below 20% 75655 | -1/Access | Assembled emerged from beneath the floor 75658 | -1/Access | Allies destroyed Striker 75662 | -1/Access | Destroyed Executioner 75663 | -1/Access | Sterilization system engaged 75688 | -1/Access | Destroyed 8 combat bots 75705 | -1/Access | Destroyed by H-88 Terminator with KE Penetrator Last Messages --------------- 75681_ Penetrated by Slug. 75681_ Graphene Brace destroyed. 75682_ Acquired 62 matter. 75682_ Acquired 20 matter. 75683_ Slug penetrates H-88 Terminator. 75683_ Slug penetrates Wall. 75683_ Slug penetrates H-88 Terminator. 75683_ W-44 Eye sends out distress signal. 75683_ U-05 Engineer lays Concrete. 75685_ U-05 Engineer builds a Wall. 75696_ K-01 Serf cleans the Recycling Unit. 75697_ System corrupted: Substantial component data lost. 75699_ W-44 Eye sends out distress signal. 75700_ O-32 Director: "IFF HANDSHAKE FAILED. SECURING TERMINAL." 75702_ Penetrated by Slug. 75702_ Slug penetrates Wall. 75702_ Slug penetrates K-01 Serf. 75702_ Penetrated by Slug. Map ----- +----------------------------------------------------+ | ??????????????????# # + #? | | ??????????????????####+######################## #? | | ??????????????????????????????????????????????# #? | | ??????????????????????????????????????????????# #? | | ??????????????????????????????????????????????# #? | | ??????????????????????????????????????????????# #? | | ??????????????????????????????????????????????# ## | | ??????????????????????????????????????????????# "# | | ??????????????????????????????????###+#??#+???# ## | | ??????????????????????????????????# ## #### #? | | ??????????????????????????????????# ## | | ??????????????????????????????????# " # | | ??????????????????????????????????# # | | ??????????????????????????????????# #### # | | ??????????????????????????????????### #????# # | | ????????????????????????????????????# #????# + | | ????????????????????????????????????# ######+#### | | ????????????????????????????????????# # * ]# | | ????????????????????????????????????# # # | | ????????????????????????????????????# # # | | ????????????????????????????????????# # ! ## | | ??????????????????????#######???????# ##########"# | | ??????????????????????# """ ######### ### | | ??????????????????????#""T""##"""""## #?? | | ????????????#""" """###"" ""##""Y""## #?? | | ?? w @ A """##?? | | ?? k """#??? | | ??? R """#??? | | ???" F"#??? | | ????" o """#??? | | ????" "" #??? | | ????"" h #??? | | ????? = #??? | | ????? k h #??? | | ????? ################"" ""#####"" ""### #??? | | ?????? ?????????????????#""T""#???#"F ""#?# #??? | | ?????? ????????????????# """ #???#"""""#?# #??? | | ?????? ???????????????#######???#######?# #+#### | | ???? ?????????????????????????????????# # | | ??" #????????????????????????????????# # | | ??" #????????????????????????????????# #! | | "" #????????????????????????????????# # ! | | F"" #????????????????????????????????# # | | """ #??????????????????????????####### # | | #??????????????????????????# # | | ? #??????????????????????????# ############ | | ? #??????????????????????????# # #???? | | ?# #??????????????????????????# + #???? | | ?# #??????????????????????????# # #???? | | ?# #???????????????#??????????# # #???? | +----------------------------------------------------+ Best States ------------- Heat Dissipation 74 Coolant Potential 120 Energy Generation 63 Energy Capacity 1520 Matter Stores 300 Matter Capacity 700 Sight Range 24 Robot Scan Range 20 Terrain Scan Range 30 Terrain Scan Density 210 Jamming Range 16 Cloak Strength 6 Power Amplification 30 Additional Mass Support 20 EM Shielding 4 Armor Coverage 825 Resistance: KI 30 Resistance: TH 75 Resistance: EX 75 Resistance: EM 75 Core Shielding 90 Propulsion Shielding 66 Weapon Shielding 90 Point Defense Rating 480 Projectile Deflection 15 Weapon Cycling 20 Melee Speed Boost 50 Phase Shifting 15 Evasion (%) 90 Targeting Accuracy 30 Melee Accuracy 12 Target Analysis 6 Core Analysis 12 Armor Integrity Analysis 50 Recoil Reduction 2 Matter Filtering 50 Particle Charging 25 Kinecelleration 66 Salvage Targeting 3 Offensive Hacking 40 Defensive Hacking 26 Authchip Count 2 Item Schematics ----------------- Adv. Energy Well | -2/Protoforge | Archive Adv. Kinecellerator | -2/Protoforge | Archive Hellfire Missile Launcher | -2/Protoforge | Archive Adv. Myomer Leg | -2/Protoforge | Archive Imp. Quantum Reactor | -2/Protoforge | Archive Imp. Q-thruster | -2/Protoforge | Archive Enh. Coil Gun | -2/Protoforge | Archive Adv. Thermal Defense Suite | -2/Protoforge | Archive Adv. Gravity Neutralizer | -2/Protoforge | Archive Robot Schematics ------------------ G-73 Enforcer | -2/Protoforge | Archive T-07 Excavator | -2/Protoforge | Archive R-06 Scavenger | -2/Protoforge | Archive Fabricated ------------ Exp. Sensor Array | x1 | -3/Research Repaired ---------- Field Propulsion Array | 49% | -3/Research Cld. Field Propulsion Drive | 36% | -3/Research Phasing Sabre | 27% | -3/Research Adv. Reaction Control System | 2% | -2/Quarantine Adv. Reaction Control System | 4% | -2/Quarantine Studied --------- Field Propulsion Array | -2/Quarantine | Hacked Impulse Thruster Array | -2/Quarantine | Hacked Mic. Antimatter Reactor | -2/Quarantine | Hacked Alien Tech Used ----------------- Integrated Reactor Integrated Dissipator Core Reset Matrix Sigix Broadsword Matter Drive Subatomic Replicator Transdimensional Reconstructor Core Regenerator Dimensional Node Initializer Supercharged TR Achievements -------------- Definitely A Prototype Challenges ------------ None Game ------ Seed ExplosiveTrapCompressor Manual? 0 Play Time 13:12:15 Cumulative 886.0 hours Start 2026.08.13 @ 12:59:15 End 2026.08.19 @ 10:49:48 Sessions 67 Manual Loads 0 Difficulty Rogue Special Mode None Game No. 309 Rogue 305 Adventurer 4 Explorer 0 Win Type - Total 23 Types 9/3/7/0/0/0/2/2/0/0 Lore% 91 Gallery% 82 Achievement% 67 Wizard Run 0 Options --------- Layout 1 ASCII 0 Keyboard 0 Movement Arrows Keybinds 0 Fullscreen 1 Font 40/SmallcapsGlow Map View 50x40 Zoom Use 0% Tactical HUD 1 Map Filters NONE Filters NONE Steam 1 RUN: 030d8c59-427d-45e4-bc25-1d4f76490730